Workbook

Sheet Macro1

Sheet الوصل
B9: السيد : | D9: ر قم الواتساب :- 07812623458
B10: رقم هاتف : | C10: =VLOOKUP($C$9,'معلومات المعتمدين '!C4:D125,2,FALSE) ->  | D10: محافظة الزبون : | E10: =VLOOKUP($C$9,'معلومات المعتمدين '!C4:E125,3,FALSE) ->  | G10: عامود مساعد
B11: ت | C11: المادة | D11: السعر | E11: العدد | F11: لسعر
B12: 1 | C12: حفافة فلبس | F12: =D12*E12 -> 0 | G12: =IFERROR(VLOOKUP(C12,'الجرد المخزني '!$C$5:$K$229,9,0),"") -> 0
B13: 2 | C13: حفافة فلبس | F13: =D13*E13 -> 0 | G13: =IFERROR(VLOOKUP(C13,'الجرد المخزني '!$C$5:$K$229,9,0),"") -> 0
B14: 3 | F14: 0 | G14: =IFERROR(VLOOKUP(C14,'الجرد المخزني '!$C$5:$K$229,9,0),"") -> 
B15: 4 | F15: 0 | G15: =IFERROR(VLOOKUP(C15,'الجرد المخزني '!$C$5:$K$229,9,0),"") -> 
B16: 6 | F16: 0 | G16: =IFERROR(VLOOKUP(C16,'الجرد المخزني '!$C$5:$K$229,9,0),"") -> 
B17: 7 | F17: 0 | G17: =IFERROR(VLOOKUP(C17,'الجرد المخزني '!$C$5:$K$229,9,0),"") -> 
B18: 8 | F18: 0 | G18: =IFERROR(VLOOKUP(C18,'الجرد المخزني '!$C$5:$K$229,9,0),"") -> 
B19: 9 | F19: 0 | G19: =IFERROR(VLOOKUP(C19,'الجرد المخزني '!$C$5:$K$229,9,0),"") -> 
B20: 10 | F20: 0 | G20: =IFERROR(VLOOKUP(C20,'الجرد المخزني '!$C$5:$K$229,9,0),"") -> 
F21: 0 | G21: =IFERROR(VLOOKUP(C21,'الجرد المخزني '!$C$5:$K$229,9,0),"") -> 
C22: التوصيل | D22: 5 | E22: 1 | F22: 5 | G22: =IFERROR(VLOOKUP(C22,'الجرد المخزني '!$C$5:$K$229,9,0),"") -> 
B23: المجموع | E23: =E12+E13+E14+E15+E16+E17+E18+E19+E20 -> 0 | F23: =F12+F13+F14+F15+F16+F17+F18+F19+F21+F22 -> 5
B24: تاريخ الشراء : 27/2/2023

Sheet الجرد المخزني
B1: مخزون المواد احمد
B4: ت | C4: المادة | D4: السعر $ | E4: السعر عراقي | F4: السعر البيع | G4: الوارد | H4: الصادر | I4: حجوزات | J4: راجع | K4: الباقي | L4: الجرد بالعراقي | M4: جرد الوارد $ | N4: المبلغ المراد | O4: مبلغ الراجع $ | P4: ناتج حساب المخزن | Q4: المبلغ المحتسب
C5: حفافة فلبس | D5: 10 | E5: =D5*1900 -> 19000 | F5: 20 | G5: 1 | H5: 1 | K5: =الجدول1[[#This Row],[الوارد ]]-الجدول1[[#This Row],[الصادر ]]-الجدول1[[#This Row],[حجوزات]]-الجدول1[[#This Row],[راجع ]] -> 0 | L5: =الجدول1[[#This Row],[السعر عراقي ]]*الجدول1[[#This Row],[الباقي ]] -> 0 | M5: =الجدول1[[#This Row],[السعر $]]*الجدول1[[#This Row],[الوارد ]] -> 10 | N5: =الجدول1[[#This Row],[السعر البيع]]*الجدول1[[#This Row],[الصادر ]] -> 20 | O5: =الجدول1[[#This Row],[السعر $]]*الجدول1[[#This Row],[راجع ]] -> 0 | P5: =الجدول1[[#This Row],[جرد الوارد $]]-الجدول1[[#This Row],[مبلغ الراجع $]] -> 10 | Q5: =الجدول1[[#This Row],[السعر البيع]]*الجدول1[[#This Row],[الوارد ]] -> 20
C6: شامبو تصاقط شعر اصلي صيني | D6: 12 | E6: 22800 | F6: 30 | G6: 198 | I6: 3 | K6: =الجدول1[[#This Row],[الوارد ]]-الجدول1[[#This Row],[الصادر ]]-الجدول1[[#This Row],[حجوزات]]-الجدول1[[#This Row],[راجع ]] -> 195 | L6: =الجدول1[[#This Row],[السعر عراقي ]]*الجدول1[[#This Row],[الباقي ]] -> 4446000 | M6: =الجدول1[[#This Row],[السعر $]]*الجدول1[[#This Row],[الوارد ]] -> 2376 | N6: =الجدول1[[#This Row],[الصادر ]]*الجدول1[[#This Row],[السعر عراقي ]] -> 0 | O6: =الجدول1[[#This Row],[السعر $]]*الجدول1[[#This Row],[راجع ]] -> 0 | Q6: =الجدول1[[#This Row],[السعر البيع]]*الجدول1[[#This Row],[الوارد ]] -> 5940
C7: شامبو صيني | D7: 2 | E7: 3800 | F7: 5 | G7: 28 | H7: 1 | K7: =الجدول1[[#This Row],[الوارد ]]-الجدول1[[#This Row],[الصادر ]]-الجدول1[[#This Row],[حجوزات]]-الجدول1[[#This Row],[راجع ]] -> 27 | L7: =الجدول1[[#This Row],[السعر عراقي ]]*الجدول1[[#This Row],[الباقي ]] -> 102600 | M7: =الجدول1[[#This Row],[السعر $]]*الجدول1[[#This Row],[الوارد ]] -> 56 | N7: =الجدول1[[#This Row],[السعر البيع]]*الجدول1[[#This Row],[الصادر ]] -> 5 | O7: =الجدول1[[#This Row],[السعر $]]*الجدول1[[#This Row],[راجع ]] -> 0 | P7: =الجدول1[[#This Row],[جرد الوارد $]]-الجدول1[[#This Row],[مبلغ الراجع $]] -> 56 | Q7: =الجدول1[[#This Row],[السعر البيع]]*الجدول1[[#This Row],[الوارد ]] -> 140
C8: شامبو جسم | D8: 2 | E8: 3800 | F8: 5 | G8: 38 | H8: 2 | K8: =الجدول1[[#This Row],[الوارد ]]-الجدول1[[#This Row],[الصادر ]]-الجدول1[[#This Row],[حجوزات]]-الجدول1[[#This Row],[راجع ]] -> 36 | L8: =الجدول1[[#This Row],[السعر عراقي ]]*الجدول1[[#This Row],[الباقي ]] -> 136800 | M8: =الجدول1[[#This Row],[السعر $]]*الجدول1[[#This Row],[الوارد ]] -> 76 | N8: =الجدول1[[#This Row],[السعر البيع]]*الجدول1[[#This Row],[الصادر ]] -> 10 | O8: =الجدول1[[#This Row],[السعر $]]*الجدول1[[#This Row],[راجع ]] -> 0 | P8: =الجدول1[[#This Row],[جرد الوارد $]]-الجدول1[[#This Row],[مبلغ الراجع $]] -> 76 | Q8: =الجدول1[[#This Row],[السعر البيع]]*الجدول1[[#This Row],[الوارد ]] -> 190
C9: بلسم شعر | D9: 2.5 | E9: 4750 | F9: 5 | G9: 50 | H9: 2 | K9: =الجدول1[[#This Row],[الوارد ]]-الجدول1[[#This Row],[الصادر ]]-الجدول1[[#This Row],[حجوزات]]-الجدول1[[#This Row],[راجع ]] -> 48 | L9: =الجدول1[[#This Row],[السعر عراقي ]]*الجدول1[[#This Row],[الباقي ]] -> 228000 | M9: =الجدول1[[#This Row],[السعر $]]*الجدول1[[#This Row],[الوارد ]] -> 125 | N9: =الجدول1[[#This Row],[السعر البيع]]*الجدول1[[#This Row],[الصادر ]] -> 10 | O9: =الجدول1[[#This Row],[السعر $]]*الجدول1[[#This Row],[راجع ]] -> 0 | P9: =الجدول1[[#This Row],[جرد الوارد $]]-الجدول1[[#This Row],[مبلغ الراجع $]] -> 125 | Q9: =الجدول1[[#This Row],[السعر البيع]]*الجدول1[[#This Row],[الوارد ]] -> 250
C10: محضرة طعام 6 لتر | D10: 17.5 | E10: 33250 | F10: 35 | G10: 10 | H10: 1 | I10: 3 | K10: =الجدول1[[#This Row],[الوارد ]]-الجدول1[[#This Row],[الصادر ]]-الجدول1[[#This Row],[حجوزات]]-الجدول1[[#This Row],[راجع ]] -> 6 | L10: =الجدول1[[#This Row],[السعر عراقي ]]*الجدول1[[#This Row],[الباقي ]] -> 199500 | M10: =الجدول1[[#This Row],[السعر $]]*الجدول1[[#This Row],[الوارد ]] -> 175 | N10: =الجدول1[[#This Row],[الصادر ]]*الجدول1[[#This Row],[السعر عراقي ]] -> 33250 | O10: =الجدول1[[#This Row],[السعر $]]*الجدول1[[#This Row],[راجع ]] -> 0 | Q10: =الجدول1[[#This Row],[السعر البيع]]*الجدول1[[#This Row],[الوارد ]] -> 350
C11: مثرامة لحم صناعي | D11: 60 | E11: 114000 | F11: 115 | G11: 4 | K11: =الجدول1[[#This Row],[الوارد ]]-الجدول1[[#This Row],[الصادر ]]-الجدول1[[#This Row],[حجوزات]]-الجدول1[[#This Row],[راجع ]] -> 4 | L11: =الجدول1[[#This Row],[السعر عراقي ]]*الجدول1[[#This Row],[الباقي ]] -> 456000 | M11: =الجدول1[[#This Row],[السعر $]]*الجدول1[[#This Row],[الوارد ]] -> 240 | N11: =الجدول1[[#This Row],[الصادر ]]*الجدول1[[#This Row],[السعر عراقي ]] -> 0 | O11: =الجدول1[[#This Row],[السعر $]]*الجدول1[[#This Row],[راجع ]] -> 0 | Q11: =الجدول1[[#This Row],[السعر البيع]]*الجدول1[[#This Row],[الوارد ]] -> 460
C12: مثرامة لحم اوكي جرمني | D12: 45 | E12: 85500 | F12: 95 | G12: 2 | J12: 2 | K12: =الجدول1[[#This Row],[الوارد ]]-الجدول1[[#This Row],[الصادر ]]-الجدول1[[#This Row],[حجوزات]]-الجدول1[[#This Row],[راجع ]] -> 0 | L12: =الجدول1[[#This Row],[السعر عراقي ]]*الجدول1[[#This Row],[الباقي ]] -> 0 | M12: =الجدول1[[#This Row],[السعر $]]*الجدول1[[#This Row],[الوارد ]] -> 90 | N12: =الجدول1[[#This Row],[السعر البيع]]*الجدول1[[#This Row],[الصادر ]] -> 0 | O12: =الجدول1[[#This Row],[السعر $]]*الجدول1[[#This Row],[راجع ]] -> 90 | P12: =الجدول1[[#This Row],[جرد الوارد $]]-الجدول1[[#This Row],[مبلغ الراجع $]] -> 0 | Q12: =الجدول1[[#This Row],[السعر البيع]]*الجدول1[[#This Row],[الوارد ]] -> 190
C13: مثرامة لحم زبتر | D13: 38 | E13: 72200 | F13: 85 | G13: 0 | K13: =الجدول1[[#This Row],[الوارد ]]-الجدول1[[#This Row],[الصادر ]]-الجدول1[[#This Row],[حجوزات]]-الجدول1[[#This Row],[راجع ]] -> 0 | L13: =الجدول1[[#This Row],[السعر عراقي ]]*الجدول1[[#This Row],[الباقي ]] -> 0 | M13: =الجدول1[[#This Row],[السعر $]]*الجدول1[[#This Row],[الوارد ]] -> 0 | N13: =الجدول1[[#This Row],[السعر البيع]]*الجدول1[[#This Row],[الصادر ]] -> 0 | O13: =الجدول1[[#This Row],[السعر $]]*الجدول1[[#This Row],[راجع ]] -> 0 | P13: =الجدول1[[#This Row],[جرد الوارد $]]-الجدول1[[#This Row],[مبلغ الراجع $]] -> 0 | Q13: =الجدول1[[#This Row],[السعر البيع]]*الجدول1[[#This Row],[الوارد ]] -> 0
C14: طباخ سفري احمر | D14: 3 | E14: 5700 | F14: 11 | G14: 13 | K14: =الجدول1[[#This Row],[الوارد ]]-الجدول1[[#This Row],[الصادر ]]-الجدول1[[#This Row],[حجوزات]]-الجدول1[[#This Row],[راجع ]] -> 13 | L14: =الجدول1[[#This Row],[السعر عراقي ]]*الجدول1[[#This Row],[الباقي ]] -> 74100 | M14: =الجدول1[[#This Row],[السعر $]]*الجدول1[[#This Row],[الوارد ]] -> 39 | N14: =الجدول1[[#This Row],[السعر البيع]]*الجدول1[[#This Row],[الصادر ]] -> 0 | O14: =الجدول1[[#This Row],[السعر $]]*الجدول1[[#This Row],[راجع ]] -> 0 | P14: =الجدول1[[#This Row],[جرد الوارد $]]-الجدول1[[#This Row],[مبلغ الراجع $]] -> 39 | Q14: =الجدول1[[#This Row],[السعر البيع]]*الجدول1[[#This Row],[الوارد ]] -> 143
C15: طباخ سلفر ولف | D15: 16 | E15: 30400 | F15: 30 | G15: 5 | H15: 3 | K15: =الجدول1[[#This Row],[الوارد ]]-الجدول1[[#This Row],[الصادر ]]-الجدول1[[#This Row],[حجوزات]]-الجدول1[[#This Row],[راجع ]] -> 2 | L15: =الجدول1[[#This Row],[السعر عراقي ]]*الجدول1[[#This Row],[الباقي ]] -> 60800 | M15: =الجدول1[[#This Row],[السعر $]]*الجدول1[[#This Row],[الوارد ]] -> 80 | N15: =الجدول1[[#This Row],[السعر البيع]]*الجدول1[[#This Row],[الصادر ]] -> 90 | O15: =الجدول1[[#This Row],[السعر $]]*الجدول1[[#This Row],[راجع ]] -> 0 | P15: =الجدول1[[#This Row],[جرد الوارد $]]-الجدول1[[#This Row],[مبلغ الراجع $]] -> 80 | Q15: =الجدول1[[#This Row],[السعر البيع]]*الجدول1[[#This Row],[الوارد ]] -> 150
C16: شافطة دهون لايكي جيرمني كاسيت اصلي | D16: 70 | E16: 133000 | F16: 140 | G16: 2 | K16: =الجدول1[[#This Row],[الوارد ]]-الجدول1[[#This Row],[الصادر ]]-الجدول1[[#This Row],[حجوزات]]-الجدول1[[#This Row],[راجع ]] -> 2 | L16: =الجدول1[[#This Row],[السعر عراقي ]]*الجدول1[[#This Row],[الباقي ]] -> 266000 | M16: =الجدول1[[#This Row],[السعر $]]*الجدول1[[#This Row],[الوارد ]] -> 140 | N16: =الجدول1[[#This Row],[الصادر ]]*الجدول1[[#This Row],[السعر عراقي ]] -> 0 | O16: =الجدول1[[#This Row],[السعر $]]*الجدول1[[#This Row],[راجع ]] -> 0 | Q16: =الجدول1[[#This Row],[السعر البيع]]*الجدول1[[#This Row],[الوارد ]] -> 280
C17: مكنسة دايستر 30 لتر | D17: 45 | E17: 85500 | F17: 100 | G17: 2 | K17: =الجدول1[[#This Row],[الوارد ]]-الجدول1[[#This Row],[الصادر ]]-الجدول1[[#This Row],[حجوزات]]-الجدول1[[#This Row],[راجع ]] -> 2 | L17: =الجدول1[[#This Row],[السعر عراقي ]]*الجدول1[[#This Row],[الباقي ]] -> 171000 | M17: =الجدول1[[#This Row],[السعر $]]*الجدول1[[#This Row],[الوارد ]] -> 90 | N17: =الجدول1[[#This Row],[السعر البيع]]*الجدول1[[#This Row],[الصادر ]] -> 0 | O17: =الجدول1[[#This Row],[السعر $]]*الجدول1[[#This Row],[راجع ]] -> 0 | P17: =الجدول1[[#This Row],[جرد الوارد $]]-الجدول1[[#This Row],[مبلغ الراجع $]] -> 90 | Q17: =الجدول1[[#This Row],[السعر البيع]]*الجدول1[[#This Row],[الوارد ]] -> 200
C18: مكنسة ريوبي 30 لتر | D18: 45 | E18: 85500 | F18: 100 | G18: 1 | K18: =الجدول1[[#This Row],[الوارد ]]-الجدول1[[#This Row],[الصادر ]]-الجدول1[[#This Row],[حجوزات]]-الجدول1[[#This Row],[راجع ]] -> 1 | L18: =الجدول1[[#This Row],[السعر عراقي ]]*الجدول1[[#This Row],[الباقي ]] -> 85500 | M18: =الجدول1[[#This Row],[السعر $]]*الجدول1[[#This Row],[الوارد ]] -> 45 | N18: =الجدول1[[#This Row],[السعر البيع]]*الجدول1[[#This Row],[الصادر ]] -> 0 | O18: =الجدول1[[#This Row],[السعر $]]*الجدول1[[#This Row],[راجع ]] -> 0 | P18: =الجدول1[[#This Row],[جرد الوارد $]]-الجدول1[[#This Row],[مبلغ الراجع $]] -> 45 | Q18: =الجدول1[[#This Row],[السعر البيع]]*الجدول1[[#This Row],[الوارد ]] -> 100
C19: مكنسة صيني ماركه 20 لتر | D19: 32 | E19: 60800 | F19: 65 | G19: 6 | K19: =الجدول1[[#This Row],[الوارد ]]-الجدول1[[#This Row],[الصادر ]]-الجدول1[[#This Row],[حجوزات]]-الجدول1[[#This Row],[راجع ]] -> 6 | L19: =الجدول1[[#This Row],[السعر عراقي ]]*الجدول1[[#This Row],[الباقي ]] -> 364800 | M19: =الجدول1[[#This Row],[السعر $]]*الجدول1[[#This Row],[الوارد ]] -> 192 | N19: =الجدول1[[#This Row],[السعر البيع]]*الجدول1[[#This Row],[الصادر ]] -> 0 | O19: =الجدول1[[#This Row],[السعر $]]*الجدول1[[#This Row],[راجع ]] -> 0 | P19: =الجدول1[[#This Row],[جرد الوارد $]]-الجدول1[[#This Row],[مبلغ الراجع $]] -> 192 | Q19: =الجدول1[[#This Row],[السعر البيع]]*الجدول1[[#This Row],[الوارد ]] -> 390
C20: مكنسة سلفر ولف 30 لتر | D20: 52 | E20: 98800 | F20: 105 | G20: 3 | K20: =الجدول1[[#This Row],[الوارد ]]-الجدول1[[#This Row],[الصادر ]]-الجدول1[[#This Row],[حجوزات]]-الجدول1[[#This Row],[راجع ]] -> 3 | L20: =الجدول1[[#This Row],[السعر عراقي ]]*الجدول1[[#This Row],[الباقي ]] -> 296400 | M20: =الجدول1[[#This Row],[السعر $]]*الجدول1[[#This Row],[الوارد ]] -> 156 | N20: =الجدول1[[#This Row],[السعر البيع]]*الجدول1[[#This Row],[الصادر ]] -> 0 | O20: =الجدول1[[#This Row],[السعر $]]*الجدول1[[#This Row],[راجع ]] -> 0 | P20: =الجدول1[[#This Row],[جرد الوارد $]]-الجدول1[[#This Row],[مبلغ الراجع $]] -> 156 | Q20: =الجدول1[[#This Row],[السعر البيع]]*الجدول1[[#This Row],[الوارد ]] -> 315
C21: جدر ضغط نظامين 9 لتر | D21: 30 | E21: 57000 | F21: 65 | G21: 3 | K21: =الجدول1[[#This Row],[الوارد ]]-الجدول1[[#This Row],[الصادر ]]-الجدول1[[#This Row],[حجوزات]]-الجدول1[[#This Row],[راجع ]] -> 3 | L21: =الجدول1[[#This Row],[السعر عراقي ]]*الجدول1[[#This Row],[الباقي ]] -> 171000 | M21: =الجدول1[[#This Row],[السعر $]]*الجدول1[[#This Row],[الوارد ]] -> 90 | N21: =الجدول1[[#This Row],[الصادر ]]*الجدول1[[#This Row],[السعر عراقي ]] -> 0 | O21: =الجدول1[[#This Row],[السعر $]]*الجدول1[[#This Row],[راجع ]] -> 0 | Q21: =الجدول1[[#This Row],[السعر البيع]]*الجدول1[[#This Row],[الوارد ]] -> 195
C22: جدر ضغط نظامين 11 لتر | D22: 35 | E22: 66500 | F22: 75 | G22: 4 | K22: =الجدول1[[#This Row],[الوارد ]]-الجدول1[[#This Row],[الصادر ]]-الجدول1[[#This Row],[حجوزات]]-الجدول1[[#This Row],[راجع ]] -> 4 | L22: =الجدول1[[#This Row],[السعر عراقي ]]*الجدول1[[#This Row],[الباقي ]] -> 266000 | M22: =الجدول1[[#This Row],[السعر $]]*الجدول1[[#This Row],[الوارد ]] -> 140 | N22: =الجدول1[[#This Row],[الصادر ]]*الجدول1[[#This Row],[السعر عراقي ]] -> 0 | O22: =الجدول1[[#This Row],[السعر $]]*الجدول1[[#This Row],[راجع ]] -> 0 | Q22: =الجدول1[[#This Row],[السعر البيع]]*الجدول1[[#This Row],[الوارد ]] -> 300
C23: حدر ضغط نظامين 7 لتر | D23: 25 | E23: 47500 | F23: 55 | G23: 3 | K23: =الجدول1[[#This Row],[الوارد ]]-الجدول1[[#This Row],[الصادر ]]-الجدول1[[#This Row],[حجوزات]]-الجدول1[[#This Row],[راجع ]] -> 3 | L23: =الجدول1[[#This Row],[السعر عراقي ]]*الجدول1[[#This Row],[الباقي ]] -> 142500 | M23: =الجدول1[[#This Row],[السعر $]]*الجدول1[[#This Row],[الوارد ]] -> 75 | N23: =الجدول1[[#This Row],[الصادر ]]*الجدول1[[#This Row],[السعر عراقي ]] -> 0 | O23: =الجدول1[[#This Row],[السعر $]]*الجدول1[[#This Row],[راجع ]] -> 0 | Q23: =الجدول1[[#This Row],[السعر البيع]]*الجدول1[[#This Row],[الوارد ]] -> 165
C24: جدر دولمه كبير | D24: 19 | E24: 36100 | F24: 40 | G24: 1 | K24: =الجدول1[[#This Row],[الوارد ]]-الجدول1[[#This Row],[الصادر ]]-الجدول1[[#This Row],[حجوزات]]-الجدول1[[#This Row],[راجع ]] -> 1 | L24: =الجدول1[[#This Row],[السعر عراقي ]]*الجدول1[[#This Row],[الباقي ]] -> 36100 | M24: =الجدول1[[#This Row],[السعر $]]*الجدول1[[#This Row],[الوارد ]] -> 19 | N24: =الجدول1[[#This Row],[السعر البيع]]*الجدول1[[#This Row],[الصادر ]] -> 0 | O24: =الجدول1[[#This Row],[السعر $]]*الجدول1[[#This Row],[راجع ]] -> 0 | P24: =الجدول1[[#This Row],[جرد الوارد $]]-الجدول1[[#This Row],[مبلغ الراجع $]] -> 19 | Q24: =الجدول1[[#This Row],[السعر البيع]]*الجدول1[[#This Row],[الوارد ]] -> 40
C25: جدر نصف ضغط 24 | D25: 13 | E25: 24700 | F25: 26 | G25: 6 | K25: =الجدول1[[#This Row],[الوارد ]]-الجدول1[[#This Row],[الصادر ]]-الجدول1[[#This Row],[حجوزات]]-الجدول1[[#This Row],[راجع ]] -> 6 | L25: =الجدول1[[#This Row],[السعر عراقي ]]*الجدول1[[#This Row],[الباقي ]] -> 148200 | M25: =الجدول1[[#This Row],[السعر $]]*الجدول1[[#This Row],[الوارد ]] -> 78 | N25: =الجدول1[[#This Row],[الصادر ]]*الجدول1[[#This Row],[السعر عراقي ]] -> 0 | O25: =الجدول1[[#This Row],[السعر $]]*الجدول1[[#This Row],[راجع ]] -> 0 | Q25: =الجدول1[[#This Row],[السعر البيع]]*الجدول1[[#This Row],[الوارد ]] -> 156
C26: جدر نصف ضغط 26 | D26: 15 | E26: 28500 | F26: 30 | G26: 5 | K26: =الجدول1[[#This Row],[الوارد ]]-الجدول1[[#This Row],[الصادر ]]-الجدول1[[#This Row],[حجوزات]]-الجدول1[[#This Row],[راجع ]] -> 5 | L26: =الجدول1[[#This Row],[السعر عراقي ]]*الجدول1[[#This Row],[الباقي ]] -> 142500 | M26: =الجدول1[[#This Row],[السعر $]]*الجدول1[[#This Row],[الوارد ]] -> 75 | N26: =الجدول1[[#This Row],[الصادر ]]*الجدول1[[#This Row],[السعر عراقي ]] -> 0 | O26: =الجدول1[[#This Row],[السعر $]]*الجدول1[[#This Row],[راجع ]] -> 0 | Q26: =الجدول1[[#This Row],[السعر البيع]]*الجدول1[[#This Row],[الوارد ]] -> 150
C27: مكينه حلاقة متعدده | D27: 8 | E27: 15200 | F27: 17 | G27: 18 | H27: 1 | I27: 1 | K27: =الجدول1[[#This Row],[الوارد ]]-الجدول1[[#This Row],[الصادر ]]-الجدول1[[#This Row],[حجوزات]]-الجدول1[[#This Row],[راجع ]] -> 16 | L27: =الجدول1[[#This Row],[السعر عراقي ]]*الجدول1[[#This Row],[الباقي ]] -> 243200 | M27: =الجدول1[[#This Row],[السعر $]]*الجدول1[[#This Row],[الوارد ]] -> 144 | N27: =الجدول1[[#This Row],[السعر البيع]]*الجدول1[[#This Row],[الصادر ]] -> 17 | O27: =الجدول1[[#This Row],[السعر $]]*الجدول1[[#This Row],[راجع ]] -> 0 | P27: =الجدول1[[#This Row],[جرد الوارد $]]-الجدول1[[#This Row],[مبلغ الراجع $]] -> 144 | Q27: =الجدول1[[#This Row],[السعر البيع]]*الجدول1[[#This Row],[الوارد ]] -> 306
C28: مكينة حلاقة كيس سلفر ولف | D28: 10 | E28: 19000 | F28: 20 | G28: 0 | K28: =الجدول1[[#This Row],[الوارد ]]-الجدول1[[#This Row],[الصادر ]]-الجدول1[[#This Row],[حجوزات]]-الجدول1[[#This Row],[راجع ]] -> 0 | L28: =الجدول1[[#This Row],[السعر عراقي ]]*الجدول1[[#This Row],[الباقي ]] -> 0 | M28: =الجدول1[[#This Row],[السعر $]]*الجدول1[[#This Row],[الوارد ]] -> 0 | N28: =الجدول1[[#This Row],[السعر البيع]]*الجدول1[[#This Row],[الصادر ]] -> 0 | O28: =الجدول1[[#This Row],[السعر $]]*الجدول1[[#This Row],[راجع ]] -> 0 | P28: =الجدول1[[#This Row],[جرد الوارد $]]-الجدول1[[#This Row],[مبلغ الراجع $]] -> 0 | Q28: =الجدول1[[#This Row],[السعر البيع]]*الجدول1[[#This Row],[الوارد ]] -> 0
C29: خلاط صناعي سلفر كريست الشكل القديم | D29: 10.5 | E29: 19950 | F29: 21 | G29: 12 | H29: 1 | I29: 1 | K29: =الجدول1[[#This Row],[الوارد ]]-الجدول1[[#This Row],[الصادر ]]-الجدول1[[#This Row],[حجوزات]]-الجدول1[[#This Row],[راجع ]] -> 10 | L29: =الجدول1[[#This Row],[السعر عراقي ]]*الجدول1[[#This Row],[الباقي ]] -> 199500 | M29: =الجدول1[[#This Row],[السعر $]]*الجدول1[[#This Row],[الوارد ]] -> 126 | N29: =الجدول1[[#This Row],[الصادر ]]*الجدول1[[#This Row],[السعر عراقي ]] -> 19950 | O29: =الجدول1[[#This Row],[السعر $]]*الجدول1[[#This Row],[راجع ]] -> 0 | Q29: =الجدول1[[#This Row],[السعر البيع]]*الجدول1[[#This Row],[الوارد ]] -> 252
C30: خلاط صناعي سلفر كريست الشكل الجديد | D30: 10.6 | E30: 20140 | F30: 22 | G30: 6 | J30: 6 | K30: =الجدول1[[#This Row],[الوارد ]]-الجدول1[[#This Row],[الصادر ]]-الجدول1[[#This Row],[حجوزات]]-الجدول1[[#This Row],[راجع ]] -> 0 | L30: =الجدول1[[#This Row],[السعر عراقي ]]*الجدول1[[#This Row],[الباقي ]] -> 0 | M30: =الجدول1[[#This Row],[السعر $]]*الجدول1[[#This Row],[الوارد ]] -> 63.6 | N30: =الجدول1[[#This Row],[السعر البيع]]*الجدول1[[#This Row],[الصادر ]] -> 0 | O30: =الجدول1[[#This Row],[السعر $]]*الجدول1[[#This Row],[راجع ]] -> 63.6 | P30: =الجدول1[[#This Row],[جرد الوارد $]]-الجدول1[[#This Row],[مبلغ الراجع $]] -> 0 | Q30: =الجدول1[[#This Row],[السعر البيع]]*الجدول1[[#This Row],[الوارد ]] -> 132
C31: خلاط صناعي اصلي | D31: 22 | E31: 41800 | F31: 40 | G31: 19 | H31: 5 | K31: =الجدول1[[#This Row],[الوارد ]]-الجدول1[[#This Row],[الصادر ]]-الجدول1[[#This Row],[حجوزات]]-الجدول1[[#This Row],[راجع ]] -> 14 | L31: =الجدول1[[#This Row],[السعر عراقي ]]*الجدول1[[#This Row],[الباقي ]] -> 585200 | M31: =الجدول1[[#This Row],[السعر $]]*الجدول1[[#This Row],[الوارد ]] -> 418 | N31: =الجدول1[[#This Row],[الصادر ]]*الجدول1[[#This Row],[السعر عراقي ]] -> 209000 | O31: =الجدول1[[#This Row],[السعر $]]*الجدول1[[#This Row],[راجع ]] -> 0 | Q31: =الجدول1[[#This Row],[السعر البيع]]*الجدول1[[#This Row],[الوارد ]] -> 760
C32: صاجية رسل هوبست كبير | D32: 20 | E32: 38000 | F32: 40 | G32: 4 | H32: 1 | K32: =الجدول1[[#This Row],[الوارد ]]-الجدول1[[#This Row],[الصادر ]]-الجدول1[[#This Row],[حجوزات]]-الجدول1[[#This Row],[راجع ]] -> 3 | L32: =الجدول1[[#This Row],[السعر عراقي ]]*الجدول1[[#This Row],[الباقي ]] -> 114000 | M32: =الجدول1[[#This Row],[السعر $]]*الجدول1[[#This Row],[الوارد ]] -> 80 | N32: =الجدول1[[#This Row],[الصادر ]]*الجدول1[[#This Row],[السعر عراقي ]] -> 38000 | O32: =الجدول1[[#This Row],[السعر $]]*الجدول1[[#This Row],[راجع ]] -> 0 | Q32: =الجدول1[[#This Row],[السعر البيع]]*الجدول1[[#This Row],[الوارد ]] -> 160
C33: صاجية تزيو كبير | D33: 22 | E33: 41800 | F33: 45 | G33: 1 | K33: =الجدول1[[#This Row],[الوارد ]]-الجدول1[[#This Row],[الصادر ]]-الجدول1[[#This Row],[حجوزات]]-الجدول1[[#This Row],[راجع ]] -> 1 | L33: =الجدول1[[#This Row],[السعر عراقي ]]*الجدول1[[#This Row],[الباقي ]] -> 41800 | M33: =الجدول1[[#This Row],[السعر $]]*الجدول1[[#This Row],[الوارد ]] -> 22 | N33: =الجدول1[[#This Row],[الصادر ]]*الجدول1[[#This Row],[السعر عراقي ]] -> 0 | O33: =الجدول1[[#This Row],[السعر $]]*الجدول1[[#This Row],[راجع ]] -> 0 | Q33: =الجدول1[[#This Row],[السعر البيع]]*الجدول1[[#This Row],[الوارد ]] -> 45
C34: صاجية سلفر صغير | D34: 12 | E34: 22800 | F34: 25 | G34: 3 | H34: 1 | K34: =الجدول1[[#This Row],[الوارد ]]-الجدول1[[#This Row],[الصادر ]]-الجدول1[[#This Row],[حجوزات]]-الجدول1[[#This Row],[راجع ]] -> 2 | L34: =الجدول1[[#This Row],[السعر عراقي ]]*الجدول1[[#This Row],[الباقي ]] -> 45600 | M34: =الجدول1[[#This Row],[السعر $]]*الجدول1[[#This Row],[الوارد ]] -> 36 | N34: =الجدول1[[#This Row],[السعر البيع]]*الجدول1[[#This Row],[الصادر ]] -> 25 | O34: =الجدول1[[#This Row],[السعر $]]*الجدول1[[#This Row],[راجع ]] -> 0 | P34: =الجدول1[[#This Row],[جرد الوارد $]]-الجدول1[[#This Row],[مبلغ الراجع $]] -> 36 | Q34: =الجدول1[[#This Row],[السعر البيع]]*الجدول1[[#This Row],[الوارد ]] -> 75
C35: مكينه جلي ثلاثي كنك | D35: 9 | E35: 17100 | F35: 20 | G35: 8 | K35: =الجدول1[[#This Row],[الوارد ]]-الجدول1[[#This Row],[الصادر ]]-الجدول1[[#This Row],[حجوزات]]-الجدول1[[#This Row],[راجع ]] -> 8 | L35: =الجدول1[[#This Row],[السعر عراقي ]]*الجدول1[[#This Row],[الباقي ]] -> 136800 | M35: =الجدول1[[#This Row],[السعر $]]*الجدول1[[#This Row],[الوارد ]] -> 72 | N35: =الجدول1[[#This Row],[السعر البيع]]*الجدول1[[#This Row],[الصادر ]] -> 0 | O35: =الجدول1[[#This Row],[السعر $]]*الجدول1[[#This Row],[راجع ]] -> 0 | P35: =الجدول1[[#This Row],[جرد الوارد $]]-الجدول1[[#This Row],[مبلغ الراجع $]] -> 72 | Q35: =الجدول1[[#This Row],[السعر البيع]]*الجدول1[[#This Row],[الوارد ]] -> 160
C36: دريل همر 1600 واط بور بلاص | D36: 32 | E36: 60800 | F36: 65 | G36: 4 | H36: 1 | K36: =الجدول1[[#This Row],[الوارد ]]-الجدول1[[#This Row],[الصادر ]]-الجدول1[[#This Row],[حجوزات]]-الجدول1[[#This Row],[راجع ]] -> 3 | L36: =الجدول1[[#This Row],[السعر عراقي ]]*الجدول1[[#This Row],[الباقي ]] -> 182400 | M36: =الجدول1[[#This Row],[السعر $]]*الجدول1[[#This Row],[الوارد ]] -> 128 | N36: =الجدول1[[#This Row],[الصادر ]]*الجدول1[[#This Row],[السعر عراقي ]] -> 60800 | O36: =الجدول1[[#This Row],[السعر $]]*الجدول1[[#This Row],[راجع ]] -> 0 | Q36: =الجدول1[[#This Row],[السعر البيع]]*الجدول1[[#This Row],[الوارد ]] -> 260
C37: دريل باركسايد شحن | D37: 15 | E37: =D37*1900 -> 28500 | F37: 30 | G37: 10 | H37: 8 | K37: =الجدول1[[#This Row],[الوارد ]]-الجدول1[[#This Row],[الصادر ]]-الجدول1[[#This Row],[حجوزات]]-الجدول1[[#This Row],[راجع ]] -> 2 | L37: =الجدول1[[#This Row],[السعر عراقي ]]*الجدول1[[#This Row],[الباقي ]] -> 57000 | M37: =الجدول1[[#This Row],[السعر $]]*الجدول1[[#This Row],[الوارد ]] -> 150 | N37: =الجدول1[[#This Row],[الصادر ]]*الجدول1[[#This Row],[السعر عراقي ]] -> 228000 | O37: =الجدول1[[#This Row],[السعر $]]*الجدول1[[#This Row],[راجع ]] -> 0 | Q37: =الجدول1[[#This Row],[السعر البيع]]*الجدول1[[#This Row],[الوارد ]] -> 300
C38: دريل اخضر | D38: 24 | E38: 45600 | F38: 45 | G38: 13 | H38: 1 | K38: =الجدول1[[#This Row],[الوارد ]]-الجدول1[[#This Row],[الصادر ]]-الجدول1[[#This Row],[حجوزات]]-الجدول1[[#This Row],[راجع ]] -> 12 | L38: =الجدول1[[#This Row],[السعر عراقي ]]*الجدول1[[#This Row],[الباقي ]] -> 547200 | M38: =الجدول1[[#This Row],[السعر $]]*الجدول1[[#This Row],[الوارد ]] -> 312 | N38: =الجدول1[[#This Row],[السعر البيع]]*الجدول1[[#This Row],[الصادر ]] -> 45 | O38: =الجدول1[[#This Row],[السعر $]]*الجدول1[[#This Row],[راجع ]] -> 0 | P38: =الجدول1[[#This Row],[جرد الوارد $]]-الجدول1[[#This Row],[مبلغ الراجع $]] -> 312 | Q38: =الجدول1[[#This Row],[السعر البيع]]*الجدول1[[#This Row],[الوارد ]] -> 585
C39: لايت مدالية | D39: 2 | E39: 3800 | F39: 5 | G39: 129 | H39: 4 | I39: 1 | K39: =الجدول1[[#This Row],[الوارد ]]-الجدول1[[#This Row],[الصادر ]]-الجدول1[[#This Row],[حجوزات]]-الجدول1[[#This Row],[راجع ]] -> 124 | L39: =الجدول1[[#This Row],[السعر عراقي ]]*الجدول1[[#This Row],[الباقي ]] -> 471200 | M39: =الجدول1[[#This Row],[السعر $]]*الجدول1[[#This Row],[الوارد ]] -> 258 | N39: =الجدول1[[#This Row],[السعر البيع]]*الجدول1[[#This Row],[الصادر ]] -> 20 | O39: =الجدول1[[#This Row],[السعر $]]*الجدول1[[#This Row],[راجع ]] -> 0 | P39: =الجدول1[[#This Row],[جرد الوارد $]]-الجدول1[[#This Row],[مبلغ الراجع $]] -> 258 | Q39: =الجدول1[[#This Row],[السعر البيع]]*الجدول1[[#This Row],[الوارد ]] -> 645
C40: ام بي 3 انارة | D40: 4 | E40: 7600 | F40: 10 | G40: 7 | K40: =الجدول1[[#This Row],[الوارد ]]-الجدول1[[#This Row],[الصادر ]]-الجدول1[[#This Row],[حجوزات]]-الجدول1[[#This Row],[راجع ]] -> 7 | L40: =الجدول1[[#This Row],[السعر عراقي ]]*الجدول1[[#This Row],[الباقي ]] -> 53200 | M40: =الجدول1[[#This Row],[السعر $]]*الجدول1[[#This Row],[الوارد ]] -> 28 | N40: =الجدول1[[#This Row],[السعر البيع]]*الجدول1[[#This Row],[الصادر ]] -> 0 | O40: =الجدول1[[#This Row],[السعر $]]*الجدول1[[#This Row],[راجع ]] -> 0 | P40: =الجدول1[[#This Row],[جرد الوارد $]]-الجدول1[[#This Row],[مبلغ الراجع $]] -> 28 | Q40: =الجدول1[[#This Row],[السعر البيع]]*الجدول1[[#This Row],[الوارد ]] -> 70
C41: ام بي 3 كلاسك | D41: 8 | E41: 15200 | F41: 14 | G41: 10 | H41: 3 | I41: 5 | K41: =الجدول1[[#This Row],[الوارد ]]-الجدول1[[#This Row],[الصادر ]]-الجدول1[[#This Row],[حجوزات]]-الجدول1[[#This Row],[راجع ]] -> 2 | L41: =الجدول1[[#This Row],[السعر عراقي ]]*الجدول1[[#This Row],[الباقي ]] -> 30400 | M41: =الجدول1[[#This Row],[السعر $]]*الجدول1[[#This Row],[الوارد ]] -> 80 | N41: =الجدول1[[#This Row],[السعر البيع]]*الجدول1[[#This Row],[الصادر ]] -> 42 | O41: =الجدول1[[#This Row],[السعر $]]*الجدول1[[#This Row],[راجع ]] -> 0 | P41: =الجدول1[[#This Row],[جرد الوارد $]]-الجدول1[[#This Row],[مبلغ الراجع $]] -> 80 | Q41: =الجدول1[[#This Row],[السعر البيع]]*الجدول1[[#This Row],[الوارد ]] -> 140
C42: سيت فرجه دوار | D42: 20 | E42: 38000 | F42: 40 | G42: 0 | K42: =الجدول1[[#This Row],[الوارد ]]-الجدول1[[#This Row],[الصادر ]]-الجدول1[[#This Row],[حجوزات]]-الجدول1[[#This Row],[راجع ]] -> 0 | L42: =الجدول1[[#This Row],[السعر عراقي ]]*الجدول1[[#This Row],[الباقي ]] -> 0 | M42: =الجدول1[[#This Row],[السعر $]]*الجدول1[[#This Row],[الوارد ]] -> 0 | N42: =الجدول1[[#This Row],[السعر البيع]]*الجدول1[[#This Row],[الصادر ]] -> 0 | O42: =الجدول1[[#This Row],[السعر $]]*الجدول1[[#This Row],[راجع ]] -> 0 | P42: =الجدول1[[#This Row],[جرد الوارد $]]-الجدول1[[#This Row],[مبلغ الراجع $]] -> 0 | Q42: =الجدول1[[#This Row],[السعر البيع]]*الجدول1[[#This Row],[الوارد ]] -> 0
C43: فرجه دوار | D43: 16 | E43: 30400 | F43: 35 | G43: 3 | K43: =الجدول1[[#This Row],[الوارد ]]-الجدول1[[#This Row],[الصادر ]]-الجدول1[[#This Row],[حجوزات]]-الجدول1[[#This Row],[راجع ]] -> 3 | L43: =الجدول1[[#This Row],[السعر عراقي ]]*الجدول1[[#This Row],[الباقي ]] -> 91200 | M43: =الجدول1[[#This Row],[السعر $]]*الجدول1[[#This Row],[الوارد ]] -> 48 | N43: =الجدول1[[#This Row],[السعر البيع]]*الجدول1[[#This Row],[الصادر ]] -> 0 | O43: =الجدول1[[#This Row],[السعر $]]*الجدول1[[#This Row],[راجع ]] -> 0 | P43: =الجدول1[[#This Row],[جرد الوارد $]]-الجدول1[[#This Row],[مبلغ الراجع $]] -> 48 | Q43: =الجدول1[[#This Row],[السعر البيع]]*الجدول1[[#This Row],[الوارد ]] -> 105
C44: خبازة حجم 40 | D44: 32 | E44: 60800 | F44: 65 | G44: 2 | I44: 1 | K44: =الجدول1[[#This Row],[الوارد ]]-الجدول1[[#This Row],[الصادر ]]-الجدول1[[#This Row],[حجوزات]]-الجدول1[[#This Row],[راجع ]] -> 1 | L44: =الجدول1[[#This Row],[السعر عراقي ]]*الجدول1[[#This Row],[الباقي ]] -> 60800 | M44: =الجدول1[[#This Row],[السعر $]]*الجدول1[[#This Row],[الوارد ]] -> 64 | N44: =الجدول1[[#This Row],[السعر البيع]]*الجدول1[[#This Row],[الصادر ]] -> 0 | O44: =الجدول1[[#This Row],[السعر $]]*الجدول1[[#This Row],[راجع ]] -> 0 | P44: =الجدول1[[#This Row],[جرد الوارد $]]-الجدول1[[#This Row],[مبلغ الراجع $]] -> 64 | Q44: =الجدول1[[#This Row],[السعر البيع]]*الجدول1[[#This Row],[الوارد ]] -> 130
C45: سيار t21 | D45: 7 | E45: 13300 | F45: 17 | G45: 2 | H45: 1 | K45: =الجدول1[[#This Row],[الوارد ]]-الجدول1[[#This Row],[الصادر ]]-الجدول1[[#This Row],[حجوزات]]-الجدول1[[#This Row],[راجع ]] -> 1 | L45: =الجدول1[[#This Row],[السعر عراقي ]]*الجدول1[[#This Row],[الباقي ]] -> 13300 | M45: =الجدول1[[#This Row],[السعر $]]*الجدول1[[#This Row],[الوارد ]] -> 14 | N45: =الجدول1[[#This Row],[الصادر ]]*الجدول1[[#This Row],[السعر عراقي ]] -> 13300 | O45: =الجدول1[[#This Row],[السعر $]]*الجدول1[[#This Row],[راجع ]] -> 0 | Q45: =الجدول1[[#This Row],[السعر البيع]]*الجدول1[[#This Row],[الوارد ]] -> 34
C46: سيار t20 | D46: 7 | E46: 13300 | F46: 16 | G46: 10 | K46: =الجدول1[[#This Row],[الوارد ]]-الجدول1[[#This Row],[الصادر ]]-الجدول1[[#This Row],[حجوزات]]-الجدول1[[#This Row],[راجع ]] -> 10 | L46: =الجدول1[[#This Row],[السعر عراقي ]]*الجدول1[[#This Row],[الباقي ]] -> 133000 | M46: =الجدول1[[#This Row],[السعر $]]*الجدول1[[#This Row],[الوارد ]] -> 70 | N46: =الجدول1[[#This Row],[الصادر ]]*الجدول1[[#This Row],[السعر عراقي ]] -> 0 | O46: =الجدول1[[#This Row],[السعر $]]*الجدول1[[#This Row],[راجع ]] -> 0 | Q46: =الجدول1[[#This Row],[السعر البيع]]*الجدول1[[#This Row],[الوارد ]] -> 160
C47: سيار t19 | D47: 6 | E47: 11400 | F47: 15 | G47: 9 | K47: =الجدول1[[#This Row],[الوارد ]]-الجدول1[[#This Row],[الصادر ]]-الجدول1[[#This Row],[حجوزات]]-الجدول1[[#This Row],[راجع ]] -> 9 | L47: =الجدول1[[#This Row],[السعر عراقي ]]*الجدول1[[#This Row],[الباقي ]] -> 102600 | M47: =الجدول1[[#This Row],[السعر $]]*الجدول1[[#This Row],[الوارد ]] -> 54 | N47: =الجدول1[[#This Row],[الصادر ]]*الجدول1[[#This Row],[السعر عراقي ]] -> 0 | O47: =الجدول1[[#This Row],[السعر $]]*الجدول1[[#This Row],[راجع ]] -> 0 | Q47: =الجدول1[[#This Row],[السعر البيع]]*الجدول1[[#This Row],[الوارد ]] -> 135
C48: سيار t22 | D48: 8 | E48: 15200 | F48: 20 | G48: 6 | K48: =الجدول1[[#This Row],[الوارد ]]-الجدول1[[#This Row],[الصادر ]]-الجدول1[[#This Row],[حجوزات]]-الجدول1[[#This Row],[راجع ]] -> 6 | L48: =الجدول1[[#This Row],[السعر عراقي ]]*الجدول1[[#This Row],[الباقي ]] -> 91200 | M48: =الجدول1[[#This Row],[السعر $]]*الجدول1[[#This Row],[الوارد ]] -> 48 | N48: =الجدول1[[#This Row],[السعر البيع]]*الجدول1[[#This Row],[الصادر ]] -> 0 | O48: =الجدول1[[#This Row],[السعر $]]*الجدول1[[#This Row],[راجع ]] -> 0 | P48: =الجدول1[[#This Row],[جرد الوارد $]]-الجدول1[[#This Row],[مبلغ الراجع $]] -> 48 | Q48: =الجدول1[[#This Row],[السعر البيع]]*الجدول1[[#This Row],[الوارد ]] -> 120
C49: سيار b08 | D49: 8 | E49: 15200 | F49: 18 | G49: 6 | K49: =الجدول1[[#This Row],[الوارد ]]-الجدول1[[#This Row],[الصادر ]]-الجدول1[[#This Row],[حجوزات]]-الجدول1[[#This Row],[راجع ]] -> 6 | L49: =الجدول1[[#This Row],[السعر عراقي ]]*الجدول1[[#This Row],[الباقي ]] -> 91200 | M49: =الجدول1[[#This Row],[السعر $]]*الجدول1[[#This Row],[الوارد ]] -> 48 | N49: =الجدول1[[#This Row],[الصادر ]]*الجدول1[[#This Row],[السعر عراقي ]] -> 0 | O49: =الجدول1[[#This Row],[السعر $]]*الجدول1[[#This Row],[راجع ]] -> 0 | Q49: =الجدول1[[#This Row],[السعر البيع]]*الجدول1[[#This Row],[الوارد ]] -> 108
C50: سيار b06 | D50: 7.5 | E50: 14250 | F50: 16 | G50: 3 | K50: =الجدول1[[#This Row],[الوارد ]]-الجدول1[[#This Row],[الصادر ]]-الجدول1[[#This Row],[حجوزات]]-الجدول1[[#This Row],[راجع ]] -> 3 | L50: =الجدول1[[#This Row],[السعر عراقي ]]*الجدول1[[#This Row],[الباقي ]] -> 42750 | M50: =الجدول1[[#This Row],[السعر $]]*الجدول1[[#This Row],[الوارد ]] -> 22.5 | N50: =الجدول1[[#This Row],[الصادر ]]*الجدول1[[#This Row],[السعر عراقي ]] -> 0 | O50: =الجدول1[[#This Row],[السعر $]]*الجدول1[[#This Row],[راجع ]] -> 0 | Q50: =الجدول1[[#This Row],[السعر البيع]]*الجدول1[[#This Row],[الوارد ]] -> 48
C51: سيار اخضر | D51: 6 | E51: 11400 | F51: 13 | G51: 7 | K51: =الجدول1[[#This Row],[الوارد ]]-الجدول1[[#This Row],[الصادر ]]-الجدول1[[#This Row],[حجوزات]]-الجدول1[[#This Row],[راجع ]] -> 7 | L51: =الجدول1[[#This Row],[السعر عراقي ]]*الجدول1[[#This Row],[الباقي ]] -> 79800 | M51: =الجدول1[[#This Row],[السعر $]]*الجدول1[[#This Row],[الوارد ]] -> 42 | N51: =الجدول1[[#This Row],[الصادر ]]*الجدول1[[#This Row],[السعر عراقي ]] -> 0 | O51: =الجدول1[[#This Row],[السعر $]]*الجدول1[[#This Row],[راجع ]] -> 0 | Q51: =الجدول1[[#This Row],[السعر البيع]]*الجدول1[[#This Row],[الوارد ]] -> 91
C52: سيار سمارت بور | D52: 6 | E52: 11400 | F52: 13 | G52: 6 | I52: 1 | K52: =الجدول1[[#This Row],[الوارد ]]-الجدول1[[#This Row],[الصادر ]]-الجدول1[[#This Row],[حجوزات]]-الجدول1[[#This Row],[راجع ]] -> 5 | L52: =الجدول1[[#This Row],[السعر عراقي ]]*الجدول1[[#This Row],[الباقي ]] -> 57000 | M52: =الجدول1[[#This Row],[السعر $]]*الجدول1[[#This Row],[الوارد ]] -> 36 | N52: =الجدول1[[#This Row],[الصادر ]]*الجدول1[[#This Row],[السعر عراقي ]] -> 0 | O52: =الجدول1[[#This Row],[السعر $]]*الجدول1[[#This Row],[راجع ]] -> 0 | Q52: =الجدول1[[#This Row],[السعر البيع]]*الجدول1[[#This Row],[الوارد ]] -> 78
C53: قلاية 10 لتر جنل | D53: 40 | E53: 76000 | F53: 85 | G53: 1 | K53: =الجدول1[[#This Row],[الوارد ]]-الجدول1[[#This Row],[الصادر ]]-الجدول1[[#This Row],[حجوزات]]-الجدول1[[#This Row],[راجع ]] -> 1 | L53: =الجدول1[[#This Row],[السعر عراقي ]]*الجدول1[[#This Row],[الباقي ]] -> 76000 | M53: =الجدول1[[#This Row],[السعر $]]*الجدول1[[#This Row],[الوارد ]] -> 40 | N53: =الجدول1[[#This Row],[الصادر ]]*الجدول1[[#This Row],[السعر عراقي ]] -> 0 | O53: =الجدول1[[#This Row],[السعر $]]*الجدول1[[#This Row],[راجع ]] -> 0 | Q53: =الجدول1[[#This Row],[السعر البيع]]*الجدول1[[#This Row],[الوارد ]] -> 85
C54: قلاية سلفر كرست 8 لتر | D54: 28 | E54: 53200 | F54: 60 | G54: 1 | K54: =الجدول1[[#This Row],[الوارد ]]-الجدول1[[#This Row],[الصادر ]]-الجدول1[[#This Row],[حجوزات]]-الجدول1[[#This Row],[راجع ]] -> 1 | L54: =الجدول1[[#This Row],[السعر عراقي ]]*الجدول1[[#This Row],[الباقي ]] -> 53200 | M54: =الجدول1[[#This Row],[السعر $]]*الجدول1[[#This Row],[الوارد ]] -> 28 | N54: =الجدول1[[#This Row],[الصادر ]]*الجدول1[[#This Row],[السعر عراقي ]] -> 0 | O54: =الجدول1[[#This Row],[السعر $]]*الجدول1[[#This Row],[راجع ]] -> 0 | Q54: =الجدول1[[#This Row],[السعر البيع]]*الجدول1[[#This Row],[الوارد ]] -> 60
C55: قلاية هوائي جنل راف 6 لتر | D55: 27 | E55: 51300 | F55: 60 | G55: 3 | H55: 1 | K55: =الجدول1[[#This Row],[الوارد ]]-الجدول1[[#This Row],[الصادر ]]-الجدول1[[#This Row],[حجوزات]]-الجدول1[[#This Row],[راجع ]] -> 2 | L55: =الجدول1[[#This Row],[السعر عراقي ]]*الجدول1[[#This Row],[الباقي ]] -> 102600 | M55: =الجدول1[[#This Row],[السعر $]]*الجدول1[[#This Row],[الوارد ]] -> 81 | N55: =الجدول1[[#This Row],[السعر البيع]]*الجدول1[[#This Row],[الصادر ]] -> 60 | O55: =الجدول1[[#This Row],[السعر $]]*الجدول1[[#This Row],[راجع ]] -> 0 | P55: =الجدول1[[#This Row],[جرد الوارد $]]-الجدول1[[#This Row],[مبلغ الراجع $]] -> 81 | Q55: =الجدول1[[#This Row],[السعر البيع]]*الجدول1[[#This Row],[الوارد ]] -> 180
C56: قلاية سلفر جيرمني 7.7 لتر شاشه | D56: 42 | E56: 79800 | F56: 85 | G56: 3 | H56: 1 | K56: =الجدول1[[#This Row],[الوارد ]]-الجدول1[[#This Row],[الصادر ]]-الجدول1[[#This Row],[حجوزات]]-الجدول1[[#This Row],[راجع ]] -> 2 | L56: =الجدول1[[#This Row],[السعر عراقي ]]*الجدول1[[#This Row],[الباقي ]] -> 159600 | M56: =الجدول1[[#This Row],[السعر $]]*الجدول1[[#This Row],[الوارد ]] -> 126 | N56: =الجدول1[[#This Row],[الصادر ]]*الجدول1[[#This Row],[السعر عراقي ]] -> 79800 | O56: =الجدول1[[#This Row],[السعر $]]*الجدول1[[#This Row],[راجع ]] -> 0 | Q56: =الجدول1[[#This Row],[السعر البيع]]*الجدول1[[#This Row],[الوارد ]] -> 255
C57: قلاية سلاقة 7 لتر | D57: 55 | E57: 104500 | F57: 110 | G57: 0 | H57: 4 | K57: =الجدول1[[#This Row],[الوارد ]]-الجدول1[[#This Row],[الصادر ]]-الجدول1[[#This Row],[حجوزات]]-الجدول1[[#This Row],[راجع ]] -> -4 | L57: =الجدول1[[#This Row],[السعر عراقي ]]*الجدول1[[#This Row],[الباقي ]] -> -418000 | M57: =الجدول1[[#This Row],[السعر $]]*الجدول1[[#This Row],[الوارد ]] -> 0 | N57: =الجدول1[[#This Row],[السعر البيع]]*الجدول1[[#This Row],[الصادر ]] -> 440 | O57: =الجدول1[[#This Row],[السعر $]]*الجدول1[[#This Row],[راجع ]] -> 0 | P57: =الجدول1[[#This Row],[جرد الوارد $]]-الجدول1[[#This Row],[مبلغ الراجع $]] -> 0 | Q57: =الجدول1[[#This Row],[السعر البيع]]*الجدول1[[#This Row],[الوارد ]] -> 0
C58: ماعون قلاية | D58: 1 | E58: 1900 | F58: 2 | G58: 23 | H58: 1 | K58: =الجدول1[[#This Row],[الوارد ]]-الجدول1[[#This Row],[الصادر ]]-الجدول1[[#This Row],[حجوزات]]-الجدول1[[#This Row],[راجع ]] -> 22 | L58: =الجدول1[[#This Row],[السعر عراقي ]]*الجدول1[[#This Row],[الباقي ]] -> 41800 | M58: =الجدول1[[#This Row],[السعر $]]*الجدول1[[#This Row],[الوارد ]] -> 23 | N58: =الجدول1[[#This Row],[الصادر ]]*الجدول1[[#This Row],[السعر عراقي ]] -> 1900 | O58: =الجدول1[[#This Row],[السعر $]]*الجدول1[[#This Row],[راجع ]] -> 0 | Q58: =الجدول1[[#This Row],[السعر البيع]]*الجدول1[[#This Row],[الوارد ]] -> 46
C59: فاره اصليه | D59: 50 | E59: 95000 | F59: 110 | G59: 0 | K59: =الجدول1[[#This Row],[الوارد ]]-الجدول1[[#This Row],[الصادر ]]-الجدول1[[#This Row],[حجوزات]]-الجدول1[[#This Row],[راجع ]] -> 0 | L59: =الجدول1[[#This Row],[السعر عراقي ]]*الجدول1[[#This Row],[الباقي ]] -> 0 | M59: =الجدول1[[#This Row],[السعر $]]*الجدول1[[#This Row],[الوارد ]] -> 0 | N59: =الجدول1[[#This Row],[الصادر ]]*الجدول1[[#This Row],[السعر عراقي ]] -> 0 | O59: =الجدول1[[#This Row],[السعر $]]*الجدول1[[#This Row],[راجع ]] -> 0 | Q59: =الجدول1[[#This Row],[السعر البيع]]*الجدول1[[#This Row],[الوارد ]] -> 0
C60: فارة سلفر ولف | D60: 50 | E60: 95000 | F60: 110 | G60: 1 | K60: =الجدول1[[#This Row],[الوارد ]]-الجدول1[[#This Row],[الصادر ]]-الجدول1[[#This Row],[حجوزات]]-الجدول1[[#This Row],[راجع ]] -> 1 | L60: =الجدول1[[#This Row],[السعر عراقي ]]*الجدول1[[#This Row],[الباقي ]] -> 95000 | M60: =الجدول1[[#This Row],[السعر $]]*الجدول1[[#This Row],[الوارد ]] -> 50 | N60: =الجدول1[[#This Row],[السعر البيع]]*الجدول1[[#This Row],[الصادر ]] -> 0 | O60: =الجدول1[[#This Row],[السعر $]]*الجدول1[[#This Row],[راجع ]] -> 0 | P60: =الجدول1[[#This Row],[جرد الوارد $]]-الجدول1[[#This Row],[مبلغ الراجع $]] -> 50 | Q60: =الجدول1[[#This Row],[السعر البيع]]*الجدول1[[#This Row],[الوارد ]] -> 110
C61: سجين ستيل سيت | D61: 4 | E61: 7600 | F61: 1 | G61: 120 | H61: 53 | K61: =الجدول1[[#This Row],[الوارد ]]-الجدول1[[#This Row],[الصادر ]]-الجدول1[[#This Row],[حجوزات]]-الجدول1[[#This Row],[راجع ]] -> 67 | L61: =الجدول1[[#This Row],[السعر عراقي ]]*الجدول1[[#This Row],[الباقي ]] -> 509200 | M61: =الجدول1[[#This Row],[السعر $]]*الجدول1[[#This Row],[الوارد ]] -> 480 | N61: =الجدول1[[#This Row],[الصادر ]]*الجدول1[[#This Row],[السعر عراقي ]] -> 402800 | O61: =الجدول1[[#This Row],[السعر $]]*الجدول1[[#This Row],[راجع ]] -> 0 | Q61: =الجدول1[[#This Row],[السعر البيع]]*الجدول1[[#This Row],[الوارد ]] -> 120
C62: طاحونة سلفر ولف | D62: 13 | E62: 24700 | F62: 26 | G62: 3 | H62: 1 | K62: =الجدول1[[#This Row],[الوارد ]]-الجدول1[[#This Row],[الصادر ]]-الجدول1[[#This Row],[حجوزات]]-الجدول1[[#This Row],[راجع ]] -> 2 | L62: =الجدول1[[#This Row],[السعر عراقي ]]*الجدول1[[#This Row],[الباقي ]] -> 49400 | M62: =الجدول1[[#This Row],[السعر $]]*الجدول1[[#This Row],[الوارد ]] -> 39 | N62: =الجدول1[[#This Row],[السعر البيع]]*الجدول1[[#This Row],[الصادر ]] -> 26 | O62: =الجدول1[[#This Row],[السعر $]]*الجدول1[[#This Row],[راجع ]] -> 0 | P62: =الجدول1[[#This Row],[جرد الوارد $]]-الجدول1[[#This Row],[مبلغ الراجع $]] -> 39 | Q62: =الجدول1[[#This Row],[السعر البيع]]*الجدول1[[#This Row],[الوارد ]] -> 78
C63: خفاقة سلفر كرست | D63: 6.5 | E63: 12350 | F63: 14 | G63: 1 | K63: =الجدول1[[#This Row],[الوارد ]]-الجدول1[[#This Row],[الصادر ]]-الجدول1[[#This Row],[حجوزات]]-الجدول1[[#This Row],[راجع ]] -> 1 | L63: =الجدول1[[#This Row],[السعر عراقي ]]*الجدول1[[#This Row],[الباقي ]] -> 12350 | M63: =الجدول1[[#This Row],[السعر $]]*الجدول1[[#This Row],[الوارد ]] -> 6.5 | N63: =الجدول1[[#This Row],[الصادر ]]*الجدول1[[#This Row],[السعر عراقي ]] -> 0 | O63: =الجدول1[[#This Row],[السعر $]]*الجدول1[[#This Row],[راجع ]] -> 0 | Q63: =الجدول1[[#This Row],[السعر البيع]]*الجدول1[[#This Row],[الوارد ]] -> 14
C64: خفاقة شاشة | D64: 12 | E64: 22800 | F64: 25 | G64: 7 | K64: =الجدول1[[#This Row],[الوارد ]]-الجدول1[[#This Row],[الصادر ]]-الجدول1[[#This Row],[حجوزات]]-الجدول1[[#This Row],[راجع ]] -> 7 | L64: =الجدول1[[#This Row],[السعر عراقي ]]*الجدول1[[#This Row],[الباقي ]] -> 159600 | M64: =الجدول1[[#This Row],[السعر $]]*الجدول1[[#This Row],[الوارد ]] -> 84 | N64: =الجدول1[[#This Row],[السعر البيع]]*الجدول1[[#This Row],[الصادر ]] -> 0 | O64: =الجدول1[[#This Row],[السعر $]]*الجدول1[[#This Row],[راجع ]] -> 0 | P64: =الجدول1[[#This Row],[جرد الوارد $]]-الجدول1[[#This Row],[مبلغ الراجع $]] -> 84 | Q64: =الجدول1[[#This Row],[السعر البيع]]*الجدول1[[#This Row],[الوارد ]] -> 175
C65: مكينة خياطة برذر | D65: 80 | E65: 152000 | F65: 150 | G65: 1 | K65: =الجدول1[[#This Row],[الوارد ]]-الجدول1[[#This Row],[الصادر ]]-الجدول1[[#This Row],[حجوزات]]-الجدول1[[#This Row],[راجع ]] -> 1 | L65: =الجدول1[[#This Row],[السعر عراقي ]]*الجدول1[[#This Row],[الباقي ]] -> 152000 | M65: =الجدول1[[#This Row],[السعر $]]*الجدول1[[#This Row],[الوارد ]] -> 80 | N65: =الجدول1[[#This Row],[السعر البيع]]*الجدول1[[#This Row],[الصادر ]] -> 0 | O65: =الجدول1[[#This Row],[السعر $]]*الجدول1[[#This Row],[راجع ]] -> 0 | P65: =الجدول1[[#This Row],[جرد الوارد $]]-الجدول1[[#This Row],[مبلغ الراجع $]] -> 80 | Q65: =الجدول1[[#This Row],[السعر البيع]]*الجدول1[[#This Row],[الوارد ]] -> 150
C66: ميزان اشخاص لايكي جيرمني | D66: 11 | E66: 20900 | F66: 25 | G66: 7 | H66: 1 | K66: =الجدول1[[#This Row],[الوارد ]]-الجدول1[[#This Row],[الصادر ]]-الجدول1[[#This Row],[حجوزات]]-الجدول1[[#This Row],[راجع ]] -> 6 | L66: =الجدول1[[#This Row],[السعر عراقي ]]*الجدول1[[#This Row],[الباقي ]] -> 125400 | M66: =الجدول1[[#This Row],[السعر $]]*الجدول1[[#This Row],[الوارد ]] -> 77 | N66: =الجدول1[[#This Row],[الصادر ]]*الجدول1[[#This Row],[السعر عراقي ]] -> 20900 | O66: =الجدول1[[#This Row],[السعر $]]*الجدول1[[#This Row],[راجع ]] -> 0 | Q66: =الجدول1[[#This Row],[السعر البيع]]*الجدول1[[#This Row],[الوارد ]] -> 175
C67: اوتي سلفر كرست | D67: 8 | E67: 15200 | F67: 15 | G67: 5 | K67: =الجدول1[[#This Row],[الوارد ]]-الجدول1[[#This Row],[الصادر ]]-الجدول1[[#This Row],[حجوزات]]-الجدول1[[#This Row],[راجع ]] -> 5 | L67: =الجدول1[[#This Row],[السعر عراقي ]]*الجدول1[[#This Row],[الباقي ]] -> 76000 | M67: =الجدول1[[#This Row],[السعر $]]*الجدول1[[#This Row],[الوارد ]] -> 40 | N67: =الجدول1[[#This Row],[السعر البيع]]*الجدول1[[#This Row],[الصادر ]] -> 0 | O67: =الجدول1[[#This Row],[السعر $]]*الجدول1[[#This Row],[راجع ]] -> 0 | P67: =الجدول1[[#This Row],[جرد الوارد $]]-الجدول1[[#This Row],[مبلغ الراجع $]] -> 40 | Q67: =الجدول1[[#This Row],[السعر البيع]]*الجدول1[[#This Row],[الوارد ]] -> 75
C68: اوتي اي اي جي | D68: 10 | E68: 19000 | F68: 20 | G68: 6 | K68: =الجدول1[[#This Row],[الوارد ]]-الجدول1[[#This Row],[الصادر ]]-الجدول1[[#This Row],[حجوزات]]-الجدول1[[#This Row],[راجع ]] -> 6 | L68: =الجدول1[[#This Row],[السعر عراقي ]]*الجدول1[[#This Row],[الباقي ]] -> 114000 | M68: =الجدول1[[#This Row],[السعر $]]*الجدول1[[#This Row],[الوارد ]] -> 60 | N68: =الجدول1[[#This Row],[السعر البيع]]*الجدول1[[#This Row],[الصادر ]] -> 0 | O68: =الجدول1[[#This Row],[السعر $]]*الجدول1[[#This Row],[راجع ]] -> 0 | P68: =الجدول1[[#This Row],[جرد الوارد $]]-الجدول1[[#This Row],[مبلغ الراجع $]] -> 60 | Q68: =الجدول1[[#This Row],[السعر البيع]]*الجدول1[[#This Row],[الوارد ]] -> 120
C69: اوتي محمول بروفي كوك | D69: 10.5 | E69: =D69*1900 -> 19950 | F69: 20 | G69: 10 | K69: =الجدول1[[#This Row],[الوارد ]]-الجدول1[[#This Row],[الصادر ]]-الجدول1[[#This Row],[حجوزات]]-الجدول1[[#This Row],[راجع ]] -> 10 | L69: =الجدول1[[#This Row],[السعر عراقي ]]*الجدول1[[#This Row],[الباقي ]] -> 199500 | M69: =الجدول1[[#This Row],[السعر $]]*الجدول1[[#This Row],[الوارد ]] -> 105 | N69: =الجدول1[[#This Row],[السعر البيع]]*الجدول1[[#This Row],[الصادر ]] -> 0 | O69: =الجدول1[[#This Row],[السعر $]]*الجدول1[[#This Row],[راجع ]] -> 0 | P69: =الجدول1[[#This Row],[جرد الوارد $]]-الجدول1[[#This Row],[مبلغ الراجع $]] -> 105 | Q69: =الجدول1[[#This Row],[السعر البيع]]*الجدول1[[#This Row],[الوارد ]] -> 200
C70: اوتي راف 2200 واط وايرليس | D70: 13 | E70: 24700 | F70: 27 | G70: 3 | K70: =الجدول1[[#This Row],[الوارد ]]-الجدول1[[#This Row],[الصادر ]]-الجدول1[[#This Row],[حجوزات]]-الجدول1[[#This Row],[راجع ]] -> 3 | L70: =الجدول1[[#This Row],[السعر عراقي ]]*الجدول1[[#This Row],[الباقي ]] -> 74100 | M70: =الجدول1[[#This Row],[السعر $]]*الجدول1[[#This Row],[الوارد ]] -> 39 | N70: =الجدول1[[#This Row],[السعر البيع]]*الجدول1[[#This Row],[الصادر ]] -> 0 | O70: =الجدول1[[#This Row],[السعر $]]*الجدول1[[#This Row],[راجع ]] -> 0 | P70: =الجدول1[[#This Row],[جرد الوارد $]]-الجدول1[[#This Row],[مبلغ الراجع $]] -> 39 | Q70: =الجدول1[[#This Row],[السعر البيع]]*الجدول1[[#This Row],[الوارد ]] -> 81
C71: اوتي راف 2400 واط | D71: 14 | E71: 26600 | F71: 30 | G71: 9 | K71: =الجدول1[[#This Row],[الوارد ]]-الجدول1[[#This Row],[الصادر ]]-الجدول1[[#This Row],[حجوزات]]-الجدول1[[#This Row],[راجع ]] -> 9 | L71: =الجدول1[[#This Row],[السعر عراقي ]]*الجدول1[[#This Row],[الباقي ]] -> 239400 | M71: =الجدول1[[#This Row],[السعر $]]*الجدول1[[#This Row],[الوارد ]] -> 126 | N71: =الجدول1[[#This Row],[السعر البيع]]*الجدول1[[#This Row],[الصادر ]] -> 0 | O71: =الجدول1[[#This Row],[السعر $]]*الجدول1[[#This Row],[راجع ]] -> 0 | P71: =الجدول1[[#This Row],[جرد الوارد $]]-الجدول1[[#This Row],[مبلغ الراجع $]] -> 126 | Q71: =الجدول1[[#This Row],[السعر البيع]]*الجدول1[[#This Row],[الوارد ]] -> 270
C72: اوتي نورفا بالة بنفسجي | D72: 40 | E72: 76000 | F72: 80 | G72: 1 | K72: =الجدول1[[#This Row],[الوارد ]]-الجدول1[[#This Row],[الصادر ]]-الجدول1[[#This Row],[حجوزات]]-الجدول1[[#This Row],[راجع ]] -> 1 | L72: =الجدول1[[#This Row],[السعر عراقي ]]*الجدول1[[#This Row],[الباقي ]] -> 76000 | M72: =الجدول1[[#This Row],[السعر $]]*الجدول1[[#This Row],[الوارد ]] -> 40 | N72: =الجدول1[[#This Row],[السعر البيع]]*الجدول1[[#This Row],[الصادر ]] -> 0 | O72: =الجدول1[[#This Row],[السعر $]]*الجدول1[[#This Row],[راجع ]] -> 0 | P72: =الجدول1[[#This Row],[جرد الوارد $]]-الجدول1[[#This Row],[مبلغ الراجع $]] -> 40 | Q72: =الجدول1[[#This Row],[السعر البيع]]*الجدول1[[#This Row],[الوارد ]] -> 80
C73: اوتي كوري عامودي اصلي | D73: 35 | E73: 66500 | F73: 70 | G73: 14 | J73: 1 | K73: =الجدول1[[#This Row],[الوارد ]]-الجدول1[[#This Row],[الصادر ]]-الجدول1[[#This Row],[حجوزات]]-الجدول1[[#This Row],[راجع ]] -> 13 | L73: =الجدول1[[#This Row],[السعر عراقي ]]*الجدول1[[#This Row],[الباقي ]] -> 864500 | M73: =الجدول1[[#This Row],[السعر $]]*الجدول1[[#This Row],[الوارد ]] -> 490 | N73: =الجدول1[[#This Row],[الصادر ]]*الجدول1[[#This Row],[السعر عراقي ]] -> 0 | O73: =الجدول1[[#This Row],[السعر $]]*الجدول1[[#This Row],[راجع ]] -> 35 | Q73: =الجدول1[[#This Row],[السعر البيع]]*الجدول1[[#This Row],[الوارد ]] -> 980
C74: اوتي سلفر كرست عامودي | D74: 27 | E74: 51300 | F74: 55 | H74: 1 | I74: 1 | K74: =الجدول1[[#This Row],[الوارد ]]-الجدول1[[#This Row],[الصادر ]]-الجدول1[[#This Row],[حجوزات]]-الجدول1[[#This Row],[راجع ]] -> -2 | L74: =الجدول1[[#This Row],[السعر عراقي ]]*الجدول1[[#This Row],[الباقي ]] -> -102600 | M74: =الجدول1[[#This Row],[السعر $]]*الجدول1[[#This Row],[الوارد ]] -> 0 | N74: =الجدول1[[#This Row],[الصادر ]]*الجدول1[[#This Row],[السعر عراقي ]] -> 51300 | O74: =الجدول1[[#This Row],[السعر $]]*الجدول1[[#This Row],[راجع ]] -> 0 | Q74: =الجدول1[[#This Row],[السعر البيع]]*الجدول1[[#This Row],[الوارد ]] -> 0
C75: سماعة دام فوكس ستاند | D75: 35 | E75: 66500 | F75: 80 | G75: 4 | I75: 1 | K75: =الجدول1[[#This Row],[الوارد ]]-الجدول1[[#This Row],[الصادر ]]-الجدول1[[#This Row],[حجوزات]]-الجدول1[[#This Row],[راجع ]] -> 3 | L75: =الجدول1[[#This Row],[السعر عراقي ]]*الجدول1[[#This Row],[الباقي ]] -> 199500 | M75: =الجدول1[[#This Row],[السعر $]]*الجدول1[[#This Row],[الوارد ]] -> 140 | N75: =الجدول1[[#This Row],[السعر البيع]]*الجدول1[[#This Row],[الصادر ]] -> 0 | O75: =الجدول1[[#This Row],[السعر $]]*الجدول1[[#This Row],[راجع ]] -> 0 | P75: =الجدول1[[#This Row],[جرد الوارد $]]-الجدول1[[#This Row],[مبلغ الراجع $]] -> 140 | Q75: =الجدول1[[#This Row],[السعر البيع]]*الجدول1[[#This Row],[الوارد ]] -> 320
C76: شسوار فرجة سلفر كرست | D76: 12 | E76: 22800 | F76: 25 | G76: 4 | K76: =الجدول1[[#This Row],[الوارد ]]-الجدول1[[#This Row],[الصادر ]]-الجدول1[[#This Row],[حجوزات]]-الجدول1[[#This Row],[راجع ]] -> 4 | L76: =الجدول1[[#This Row],[السعر عراقي ]]*الجدول1[[#This Row],[الباقي ]] -> 91200 | M76: =الجدول1[[#This Row],[السعر $]]*الجدول1[[#This Row],[الوارد ]] -> 48 | N76: =الجدول1[[#This Row],[السعر البيع]]*الجدول1[[#This Row],[الصادر ]] -> 0 | O76: =الجدول1[[#This Row],[السعر $]]*الجدول1[[#This Row],[راجع ]] -> 0 | P76: =الجدول1[[#This Row],[جرد الوارد $]]-الجدول1[[#This Row],[مبلغ الراجع $]] -> 48 | Q76: =الجدول1[[#This Row],[السعر البيع]]*الجدول1[[#This Row],[الوارد ]] -> 100
C77: قاصه صغيره | D77: 13.5 | E77: 25650 | F77: 35 | G77: 1 | I77: 1 | K77: =الجدول1[[#This Row],[الوارد ]]-الجدول1[[#This Row],[الصادر ]]-الجدول1[[#This Row],[حجوزات]]-الجدول1[[#This Row],[راجع ]] -> 0 | L77: =الجدول1[[#This Row],[السعر عراقي ]]*الجدول1[[#This Row],[الباقي ]] -> 0 | M77: =الجدول1[[#This Row],[السعر $]]*الجدول1[[#This Row],[الوارد ]] -> 13.5 | N77: =الجدول1[[#This Row],[السعر البيع]]*الجدول1[[#This Row],[الصادر ]] -> 0 | O77: =الجدول1[[#This Row],[السعر $]]*الجدول1[[#This Row],[راجع ]] -> 0 | P77: =الجدول1[[#This Row],[جرد الوارد $]]-الجدول1[[#This Row],[مبلغ الراجع $]] -> 13.5 | Q77: =الجدول1[[#This Row],[السعر البيع]]*الجدول1[[#This Row],[الوارد ]] -> 35
C78: كاوية انزو سيروم | D78: 12 | E78: 22800 | F78: 25 | G78: 0 | K78: =الجدول1[[#This Row],[الوارد ]]-الجدول1[[#This Row],[الصادر ]]-الجدول1[[#This Row],[حجوزات]]-الجدول1[[#This Row],[راجع ]] -> 0 | L78: =الجدول1[[#This Row],[السعر عراقي ]]*الجدول1[[#This Row],[الباقي ]] -> 0 | M78: =الجدول1[[#This Row],[السعر $]]*الجدول1[[#This Row],[الوارد ]] -> 0 | N78: =الجدول1[[#This Row],[السعر البيع]]*الجدول1[[#This Row],[الصادر ]] -> 0 | O78: =الجدول1[[#This Row],[السعر $]]*الجدول1[[#This Row],[راجع ]] -> 0 | P78: =الجدول1[[#This Row],[جرد الوارد $]]-الجدول1[[#This Row],[مبلغ الراجع $]] -> 0 | Q78: =الجدول1[[#This Row],[السعر البيع]]*الجدول1[[#This Row],[الوارد ]] -> 0
C79: هراسة سلفر ولف | D79: 12.5 | E79: 23750 | F79: 25 | G79: 12 | H79: 2 | K79: =الجدول1[[#This Row],[الوارد ]]-الجدول1[[#This Row],[الصادر ]]-الجدول1[[#This Row],[حجوزات]]-الجدول1[[#This Row],[راجع ]] -> 10 | L79: =الجدول1[[#This Row],[السعر عراقي ]]*الجدول1[[#This Row],[الباقي ]] -> 237500 | M79: =الجدول1[[#This Row],[السعر $]]*الجدول1[[#This Row],[الوارد ]] -> 150 | N79: =الجدول1[[#This Row],[الصادر ]]*الجدول1[[#This Row],[السعر عراقي ]] -> 47500 | O79: =الجدول1[[#This Row],[السعر $]]*الجدول1[[#This Row],[راجع ]] -> 0 | Q79: =الجدول1[[#This Row],[السعر البيع]]*الجدول1[[#This Row],[الوارد ]] -> 300
C80: هراسة سوبر كرست | D80: 9 | E80: 17100 | F80: 18 | G80: 10 | K80: =الجدول1[[#This Row],[الوارد ]]-الجدول1[[#This Row],[الصادر ]]-الجدول1[[#This Row],[حجوزات]]-الجدول1[[#This Row],[راجع ]] -> 10 | L80: =الجدول1[[#This Row],[السعر عراقي ]]*الجدول1[[#This Row],[الباقي ]] -> 171000 | M80: =الجدول1[[#This Row],[السعر $]]*الجدول1[[#This Row],[الوارد ]] -> 90 | N80: =الجدول1[[#This Row],[الصادر ]]*الجدول1[[#This Row],[السعر عراقي ]] -> 0 | O80: =الجدول1[[#This Row],[السعر $]]*الجدول1[[#This Row],[راجع ]] -> 0 | Q80: =الجدول1[[#This Row],[السعر البيع]]*الجدول1[[#This Row],[الوارد ]] -> 180
C81: هراسة كولد كرست | D81: 7 | E81: 13300 | F81: 15 | G81: 10 | K81: =الجدول1[[#This Row],[الوارد ]]-الجدول1[[#This Row],[الصادر ]]-الجدول1[[#This Row],[حجوزات]]-الجدول1[[#This Row],[راجع ]] -> 10 | L81: =الجدول1[[#This Row],[السعر عراقي ]]*الجدول1[[#This Row],[الباقي ]] -> 133000 | M81: =الجدول1[[#This Row],[السعر $]]*الجدول1[[#This Row],[الوارد ]] -> 70 | N81: =الجدول1[[#This Row],[الصادر ]]*الجدول1[[#This Row],[السعر عراقي ]] -> 0 | O81: =الجدول1[[#This Row],[السعر $]]*الجدول1[[#This Row],[راجع ]] -> 0 | Q81: =الجدول1[[#This Row],[السعر البيع]]*الجدول1[[#This Row],[الوارد ]] -> 150
C82: هراسة 3*1 ستيل | D82: 13 | E82: 24700 | F82: 25 | G82: 4 | K82: =الجدول1[[#This Row],[الوارد ]]-الجدول1[[#This Row],[الصادر ]]-الجدول1[[#This Row],[حجوزات]]-الجدول1[[#This Row],[راجع ]] -> 4 | L82: =الجدول1[[#This Row],[السعر عراقي ]]*الجدول1[[#This Row],[الباقي ]] -> 98800 | M82: =الجدول1[[#This Row],[السعر $]]*الجدول1[[#This Row],[الوارد ]] -> 52 | N82: =الجدول1[[#This Row],[السعر البيع]]*الجدول1[[#This Row],[الصادر ]] -> 0 | O82: =الجدول1[[#This Row],[السعر $]]*الجدول1[[#This Row],[راجع ]] -> 0 | P82: =الجدول1[[#This Row],[جرد الوارد $]]-الجدول1[[#This Row],[مبلغ الراجع $]] -> 52 | Q82: =الجدول1[[#This Row],[السعر البيع]]*الجدول1[[#This Row],[الوارد ]] -> 100
C83: غلاية راف كيج | D83: 10 | E83: 19000 | F83: 20 | G83: 5 | K83: =الجدول1[[#This Row],[الوارد ]]-الجدول1[[#This Row],[الصادر ]]-الجدول1[[#This Row],[حجوزات]]-الجدول1[[#This Row],[راجع ]] -> 5 | L83: =الجدول1[[#This Row],[السعر عراقي ]]*الجدول1[[#This Row],[الباقي ]] -> 95000 | M83: =الجدول1[[#This Row],[السعر $]]*الجدول1[[#This Row],[الوارد ]] -> 50 | N83: =الجدول1[[#This Row],[الصادر ]]*الجدول1[[#This Row],[السعر عراقي ]] -> 0 | O83: =الجدول1[[#This Row],[السعر $]]*الجدول1[[#This Row],[راجع ]] -> 0 | Q83: =الجدول1[[#This Row],[السعر البيع]]*الجدول1[[#This Row],[الوارد ]] -> 100
C84: غلاية بلاستك | D84: 4 | E84: 7600 | F84: 10 | G84: 3 | K84: =الجدول1[[#This Row],[الوارد ]]-الجدول1[[#This Row],[الصادر ]]-الجدول1[[#This Row],[حجوزات]]-الجدول1[[#This Row],[راجع ]] -> 3 | L84: =الجدول1[[#This Row],[السعر عراقي ]]*الجدول1[[#This Row],[الباقي ]] -> 22800 | M84: =الجدول1[[#This Row],[السعر $]]*الجدول1[[#This Row],[الوارد ]] -> 12 | N84: =الجدول1[[#This Row],[الصادر ]]*الجدول1[[#This Row],[السعر عراقي ]] -> 0 | O84: =الجدول1[[#This Row],[السعر $]]*الجدول1[[#This Row],[راجع ]] -> 0 | Q84: =الجدول1[[#This Row],[السعر البيع]]*الجدول1[[#This Row],[الوارد ]] -> 30
C85: غلاية بومان | D85: 6 | E85: 11400 | F85: 13 | G85: 2 | K85: =الجدول1[[#This Row],[الوارد ]]-الجدول1[[#This Row],[الصادر ]]-الجدول1[[#This Row],[حجوزات]]-الجدول1[[#This Row],[راجع ]] -> 2 | L85: =الجدول1[[#This Row],[السعر عراقي ]]*الجدول1[[#This Row],[الباقي ]] -> 22800 | M85: =الجدول1[[#This Row],[السعر $]]*الجدول1[[#This Row],[الوارد ]] -> 12 | N85: =الجدول1[[#This Row],[الصادر ]]*الجدول1[[#This Row],[السعر عراقي ]] -> 0 | O85: =الجدول1[[#This Row],[السعر $]]*الجدول1[[#This Row],[راجع ]] -> 0 | Q85: =الجدول1[[#This Row],[السعر البيع]]*الجدول1[[#This Row],[الوارد ]] -> 26
C86: غلاية راف كزاز | D86: 7 | E86: 13300 | F86: 15 | G86: 5 | H86: 1 | K86: =الجدول1[[#This Row],[الوارد ]]-الجدول1[[#This Row],[الصادر ]]-الجدول1[[#This Row],[حجوزات]]-الجدول1[[#This Row],[راجع ]] -> 4 | L86: =الجدول1[[#This Row],[السعر عراقي ]]*الجدول1[[#This Row],[الباقي ]] -> 53200 | M86: =الجدول1[[#This Row],[السعر $]]*الجدول1[[#This Row],[الوارد ]] -> 35 | N86: =الجدول1[[#This Row],[السعر البيع]]*الجدول1[[#This Row],[الصادر ]] -> 15 | O86: =الجدول1[[#This Row],[السعر $]]*الجدول1[[#This Row],[راجع ]] -> 0 | P86: =الجدول1[[#This Row],[جرد الوارد $]]-الجدول1[[#This Row],[مبلغ الراجع $]] -> 35 | Q86: =الجدول1[[#This Row],[السعر البيع]]*الجدول1[[#This Row],[الوارد ]] -> 75
C87: فنجان قهوة | D87: 2.5 | E87: 4750 | F87: 5 | G87: 125 | H87: 2 | K87: =الجدول1[[#This Row],[الوارد ]]-الجدول1[[#This Row],[الصادر ]]-الجدول1[[#This Row],[حجوزات]]-الجدول1[[#This Row],[راجع ]] -> 123 | L87: =الجدول1[[#This Row],[السعر عراقي ]]*الجدول1[[#This Row],[الباقي ]] -> 584250 | M87: =الجدول1[[#This Row],[السعر $]]*الجدول1[[#This Row],[الوارد ]] -> 312.5 | N87: =الجدول1[[#This Row],[الصادر ]]*الجدول1[[#This Row],[السعر عراقي ]] -> 9500 | O87: =الجدول1[[#This Row],[السعر $]]*الجدول1[[#This Row],[راجع ]] -> 0 | Q87: =الجدول1[[#This Row],[السعر البيع]]*الجدول1[[#This Row],[الوارد ]] -> 625
C88: معصارة شحن | D88: 7 | E88: 13300 | F88: 20 | G88: 3 | H88: 2 | J88: 1 | K88: =الجدول1[[#This Row],[الوارد ]]-الجدول1[[#This Row],[الصادر ]]-الجدول1[[#This Row],[حجوزات]]-الجدول1[[#This Row],[راجع ]] -> 0 | L88: =الجدول1[[#This Row],[السعر عراقي ]]*الجدول1[[#This Row],[الباقي ]] -> 0 | M88: =الجدول1[[#This Row],[السعر $]]*الجدول1[[#This Row],[الوارد ]] -> 21 | N88: =الجدول1[[#This Row],[الصادر ]]*الجدول1[[#This Row],[السعر عراقي ]] -> 26600 | O88: =الجدول1[[#This Row],[السعر $]]*الجدول1[[#This Row],[راجع ]] -> 7 | Q88: =الجدول1[[#This Row],[السعر البيع]]*الجدول1[[#This Row],[الوارد ]] -> 60
C89: معصارة راف بطيئة | D89: 40 | E89: 76000 | F89: 80 | G89: 3 | K89: =الجدول1[[#This Row],[الوارد ]]-الجدول1[[#This Row],[الصادر ]]-الجدول1[[#This Row],[حجوزات]]-الجدول1[[#This Row],[راجع ]] -> 3 | L89: =الجدول1[[#This Row],[السعر عراقي ]]*الجدول1[[#This Row],[الباقي ]] -> 228000 | M89: =الجدول1[[#This Row],[السعر $]]*الجدول1[[#This Row],[الوارد ]] -> 120 | N89: =الجدول1[[#This Row],[السعر البيع]]*الجدول1[[#This Row],[الصادر ]] -> 0 | O89: =الجدول1[[#This Row],[السعر $]]*الجدول1[[#This Row],[راجع ]] -> 0 | P89: =الجدول1[[#This Row],[جرد الوارد $]]-الجدول1[[#This Row],[مبلغ الراجع $]] -> 120 | Q89: =الجدول1[[#This Row],[السعر البيع]]*الجدول1[[#This Row],[الوارد ]] -> 240
C90: حافظة اكل | D90: 10.5 | E90: 19950 | F90: 20 | G90: 7 | K90: =الجدول1[[#This Row],[الوارد ]]-الجدول1[[#This Row],[الصادر ]]-الجدول1[[#This Row],[حجوزات]]-الجدول1[[#This Row],[راجع ]] -> 7 | L90: =الجدول1[[#This Row],[السعر عراقي ]]*الجدول1[[#This Row],[الباقي ]] -> 139650 | M90: =الجدول1[[#This Row],[السعر $]]*الجدول1[[#This Row],[الوارد ]] -> 73.5 | N90: =الجدول1[[#This Row],[السعر البيع]]*الجدول1[[#This Row],[الصادر ]] -> 0 | O90: =الجدول1[[#This Row],[السعر $]]*الجدول1[[#This Row],[راجع ]] -> 0 | P90: =الجدول1[[#This Row],[جرد الوارد $]]-الجدول1[[#This Row],[مبلغ الراجع $]] -> 73.5 | Q90: =الجدول1[[#This Row],[السعر البيع]]*الجدول1[[#This Row],[الوارد ]] -> 140
C91: ترمز | D91: 7.5 | E91: 14250 | F91: 13 | G91: 2 | K91: =الجدول1[[#This Row],[الوارد ]]-الجدول1[[#This Row],[الصادر ]]-الجدول1[[#This Row],[حجوزات]]-الجدول1[[#This Row],[راجع ]] -> 2 | L91: =الجدول1[[#This Row],[السعر عراقي ]]*الجدول1[[#This Row],[الباقي ]] -> 28500 | M91: =الجدول1[[#This Row],[السعر $]]*الجدول1[[#This Row],[الوارد ]] -> 15 | N91: =الجدول1[[#This Row],[السعر البيع]]*الجدول1[[#This Row],[الصادر ]] -> 0 | O91: =الجدول1[[#This Row],[السعر $]]*الجدول1[[#This Row],[راجع ]] -> 0 | P91: =الجدول1[[#This Row],[جرد الوارد $]]-الجدول1[[#This Row],[مبلغ الراجع $]] -> 15 | Q91: =الجدول1[[#This Row],[السعر البيع]]*الجدول1[[#This Row],[الوارد ]] -> 26
C92: كابسة صاج تزوي | D92: 23 | E92: 43700 | F92: 45 | G92: 1 | K92: =الجدول1[[#This Row],[الوارد ]]-الجدول1[[#This Row],[الصادر ]]-الجدول1[[#This Row],[حجوزات]]-الجدول1[[#This Row],[راجع ]] -> 1 | L92: =الجدول1[[#This Row],[السعر عراقي ]]*الجدول1[[#This Row],[الباقي ]] -> 43700 | M92: =الجدول1[[#This Row],[السعر $]]*الجدول1[[#This Row],[الوارد ]] -> 23 | N92: =الجدول1[[#This Row],[السعر البيع]]*الجدول1[[#This Row],[الصادر ]] -> 0 | O92: =الجدول1[[#This Row],[السعر $]]*الجدول1[[#This Row],[راجع ]] -> 0 | P92: =الجدول1[[#This Row],[جرد الوارد $]]-الجدول1[[#This Row],[مبلغ الراجع $]] -> 23 | Q92: =الجدول1[[#This Row],[السعر البيع]]*الجدول1[[#This Row],[الوارد ]] -> 45
C93: معصارة سريعة بومان | D93: 17 | E93: 32300 | F93: 35 | G93: 1 | K93: =الجدول1[[#This Row],[الوارد ]]-الجدول1[[#This Row],[الصادر ]]-الجدول1[[#This Row],[حجوزات]]-الجدول1[[#This Row],[راجع ]] -> 1 | L93: =الجدول1[[#This Row],[السعر عراقي ]]*الجدول1[[#This Row],[الباقي ]] -> 32300 | M93: =الجدول1[[#This Row],[السعر $]]*الجدول1[[#This Row],[الوارد ]] -> 17 | N93: =الجدول1[[#This Row],[السعر البيع]]*الجدول1[[#This Row],[الصادر ]] -> 0 | O93: =الجدول1[[#This Row],[السعر $]]*الجدول1[[#This Row],[راجع ]] -> 0 | P93: =الجدول1[[#This Row],[جرد الوارد $]]-الجدول1[[#This Row],[مبلغ الراجع $]] -> 17 | Q93: =الجدول1[[#This Row],[السعر البيع]]*الجدول1[[#This Row],[الوارد ]] -> 35
C94: بلور سحب كبير ريوبي | D94: 20 | E94: 38000 | F94: 40 | G94: 3 | K94: =الجدول1[[#This Row],[الوارد ]]-الجدول1[[#This Row],[الصادر ]]-الجدول1[[#This Row],[حجوزات]]-الجدول1[[#This Row],[راجع ]] -> 3 | L94: =الجدول1[[#This Row],[السعر عراقي ]]*الجدول1[[#This Row],[الباقي ]] -> 114000 | M94: =الجدول1[[#This Row],[السعر $]]*الجدول1[[#This Row],[الوارد ]] -> 60 | N94: =الجدول1[[#This Row],[الصادر ]]*الجدول1[[#This Row],[السعر عراقي ]] -> 0 | O94: =الجدول1[[#This Row],[السعر $]]*الجدول1[[#This Row],[راجع ]] -> 0 | Q94: =الجدول1[[#This Row],[السعر البيع]]*الجدول1[[#This Row],[الوارد ]] -> 120
C95: بلور هواء | D95: 7 | E95: 13300 | F95: 15 | G95: 1 | I95: 1 | K95: =الجدول1[[#This Row],[الوارد ]]-الجدول1[[#This Row],[الصادر ]]-الجدول1[[#This Row],[حجوزات]]-الجدول1[[#This Row],[راجع ]] -> 0 | L95: =الجدول1[[#This Row],[السعر عراقي ]]*الجدول1[[#This Row],[الباقي ]] -> 0 | M95: =الجدول1[[#This Row],[السعر $]]*الجدول1[[#This Row],[الوارد ]] -> 7 | N95: =الجدول1[[#This Row],[الصادر ]]*الجدول1[[#This Row],[السعر عراقي ]] -> 0 | O95: =الجدول1[[#This Row],[السعر $]]*الجدول1[[#This Row],[راجع ]] -> 0 | Q95: =الجدول1[[#This Row],[السعر البيع]]*الجدول1[[#This Row],[الوارد ]] -> 15
C96: ماطور بارك سايد نحاس بوستر | D96: 35 | E96: 66500 | F96: 70 | G96: 1 | K96: =الجدول1[[#This Row],[الوارد ]]-الجدول1[[#This Row],[الصادر ]]-الجدول1[[#This Row],[حجوزات]]-الجدول1[[#This Row],[راجع ]] -> 1 | L96: =الجدول1[[#This Row],[السعر عراقي ]]*الجدول1[[#This Row],[الباقي ]] -> 66500 | M96: =الجدول1[[#This Row],[السعر $]]*الجدول1[[#This Row],[الوارد ]] -> 35 | N96: =الجدول1[[#This Row],[الصادر ]]*الجدول1[[#This Row],[السعر عراقي ]] -> 0 | O96: =الجدول1[[#This Row],[السعر $]]*الجدول1[[#This Row],[راجع ]] -> 0 | Q96: =الجدول1[[#This Row],[السعر البيع]]*الجدول1[[#This Row],[الوارد ]] -> 70
C97: ماطور لايكي جيرمني نحاس بوستر | D97: 38 | E97: 72200 | F97: 75 | G97: 4 | K97: =الجدول1[[#This Row],[الوارد ]]-الجدول1[[#This Row],[الصادر ]]-الجدول1[[#This Row],[حجوزات]]-الجدول1[[#This Row],[راجع ]] -> 4 | L97: =الجدول1[[#This Row],[السعر عراقي ]]*الجدول1[[#This Row],[الباقي ]] -> 288800 | M97: =الجدول1[[#This Row],[السعر $]]*الجدول1[[#This Row],[الوارد ]] -> 152 | N97: =الجدول1[[#This Row],[الصادر ]]*الجدول1[[#This Row],[السعر عراقي ]] -> 0 | O97: =الجدول1[[#This Row],[السعر $]]*الجدول1[[#This Row],[راجع ]] -> 0 | Q97: =الجدول1[[#This Row],[السعر البيع]]*الجدول1[[#This Row],[الوارد ]] -> 300
C98: ماطور اوزتو بوستر نحاس | D98: 32 | E98: 60800 | F98: 65 | G98: 9 | K98: =الجدول1[[#This Row],[الوارد ]]-الجدول1[[#This Row],[الصادر ]]-الجدول1[[#This Row],[حجوزات]]-الجدول1[[#This Row],[راجع ]] -> 9 | L98: =الجدول1[[#This Row],[السعر عراقي ]]*الجدول1[[#This Row],[الباقي ]] -> 547200 | M98: =الجدول1[[#This Row],[السعر $]]*الجدول1[[#This Row],[الوارد ]] -> 288 | N98: =الجدول1[[#This Row],[الصادر ]]*الجدول1[[#This Row],[السعر عراقي ]] -> 0 | O98: =الجدول1[[#This Row],[السعر $]]*الجدول1[[#This Row],[راجع ]] -> 0 | Q98: =الجدول1[[#This Row],[السعر البيع]]*الجدول1[[#This Row],[الوارد ]] -> 585
C99: كبان ليزري 16 خط ستاند | D99: 48 | E99: 91200 | F99: 95 | G99: 23 | K99: =الجدول1[[#This Row],[الوارد ]]-الجدول1[[#This Row],[الصادر ]]-الجدول1[[#This Row],[حجوزات]]-الجدول1[[#This Row],[راجع ]] -> 23 | L99: =الجدول1[[#This Row],[السعر عراقي ]]*الجدول1[[#This Row],[الباقي ]] -> 2097600 | M99: =الجدول1[[#This Row],[السعر $]]*الجدول1[[#This Row],[الوارد ]] -> 1104 | N99: =الجدول1[[#This Row],[الصادر ]]*الجدول1[[#This Row],[السعر عراقي ]] -> 0 | O99: =الجدول1[[#This Row],[السعر $]]*الجدول1[[#This Row],[راجع ]] -> 0 | Q99: =الجدول1[[#This Row],[السعر البيع]]*الجدول1[[#This Row],[الوارد ]] -> 2185
C100: ماكنة لحيم باركساية صغبير | D100: 33 | E100: 62700 | F100: 65 | G100: 6 | K100: =الجدول1[[#This Row],[الوارد ]]-الجدول1[[#This Row],[الصادر ]]-الجدول1[[#This Row],[حجوزات]]-الجدول1[[#This Row],[راجع ]] -> 6 | L100: =الجدول1[[#This Row],[السعر عراقي ]]*الجدول1[[#This Row],[الباقي ]] -> 376200 | M100: =الجدول1[[#This Row],[السعر $]]*الجدول1[[#This Row],[الوارد ]] -> 198 | N100: =الجدول1[[#This Row],[السعر البيع]]*الجدول1[[#This Row],[الصادر ]] -> 0 | O100: =الجدول1[[#This Row],[السعر $]]*الجدول1[[#This Row],[راجع ]] -> 0 | P100: =الجدول1[[#This Row],[جرد الوارد $]]-الجدول1[[#This Row],[مبلغ الراجع $]] -> 198 | Q100: =الجدول1[[#This Row],[السعر البيع]]*الجدول1[[#This Row],[الوارد ]] -> 390
C101: عجانة سلفر كرست 6.5 لتر | D101: 50 | E101: =D101*1900 -> 95000 | F101: 115 | G101: 1 | K101: =الجدول1[[#This Row],[الوارد ]]-الجدول1[[#This Row],[الصادر ]]-الجدول1[[#This Row],[حجوزات]]-الجدول1[[#This Row],[راجع ]] -> 1 | L101: =الجدول1[[#This Row],[السعر عراقي ]]*الجدول1[[#This Row],[الباقي ]] -> 95000 | M101: =الجدول1[[#This Row],[السعر $]]*الجدول1[[#This Row],[الوارد ]] -> 50 | N101: =الجدول1[[#This Row],[الصادر ]]*الجدول1[[#This Row],[السعر عراقي ]] -> 0 | O101: =الجدول1[[#This Row],[السعر $]]*الجدول1[[#This Row],[راجع ]] -> 0 | Q101: =الجدول1[[#This Row],[السعر البيع]]*الجدول1[[#This Row],[الوارد ]] -> 115
C102: عجانة كجوت 6.5 لتر | D102: 40 | E102: 76000 | F102: 80 | G102: 3 | H102: 2 | I102: 1 | K102: =الجدول1[[#This Row],[الوارد ]]-الجدول1[[#This Row],[الصادر ]]-الجدول1[[#This Row],[حجوزات]]-الجدول1[[#This Row],[راجع ]] -> 0 | L102: =الجدول1[[#This Row],[السعر عراقي ]]*الجدول1[[#This Row],[الباقي ]] -> 0 | M102: =الجدول1[[#This Row],[السعر $]]*الجدول1[[#This Row],[الوارد ]] -> 120 | N102: =الجدول1[[#This Row],[السعر البيع]]*الجدول1[[#This Row],[الصادر ]] -> 160 | O102: =الجدول1[[#This Row],[السعر $]]*الجدول1[[#This Row],[راجع ]] -> 0 | P102: =الجدول1[[#This Row],[جرد الوارد $]]-الجدول1[[#This Row],[مبلغ الراجع $]] -> 120 | Q102: =الجدول1[[#This Row],[السعر البيع]]*الجدول1[[#This Row],[الوارد ]] -> 240
C103: اوفن 60 لتر صيني اصلي | D103: 55 | E103: 104500 | F103: 115 | G103: 1 | H103: 1 | I103: 1 | K103: =الجدول1[[#This Row],[الوارد ]]-الجدول1[[#This Row],[الصادر ]]-الجدول1[[#This Row],[حجوزات]]-الجدول1[[#This Row],[راجع ]] -> -1 | L103: =الجدول1[[#This Row],[السعر عراقي ]]*الجدول1[[#This Row],[الباقي ]] -> -104500 | M103: =الجدول1[[#This Row],[السعر $]]*الجدول1[[#This Row],[الوارد ]] -> 55 | N103: =الجدول1[[#This Row],[الصادر ]]*الجدول1[[#This Row],[السعر عراقي ]] -> 104500 | O103: =الجدول1[[#This Row],[السعر $]]*الجدول1[[#This Row],[راجع ]] -> 0 | Q103: =الجدول1[[#This Row],[السعر البيع]]*الجدول1[[#This Row],[الوارد ]] -> 115
C104: اوفن 3*1 | D104: 17 | E104: 32300 | F104: 35 | G104: 4 | K104: =الجدول1[[#This Row],[الوارد ]]-الجدول1[[#This Row],[الصادر ]]-الجدول1[[#This Row],[حجوزات]]-الجدول1[[#This Row],[راجع ]] -> 4 | L104: =الجدول1[[#This Row],[السعر عراقي ]]*الجدول1[[#This Row],[الباقي ]] -> 129200 | M104: =الجدول1[[#This Row],[السعر $]]*الجدول1[[#This Row],[الوارد ]] -> 68 | N104: =الجدول1[[#This Row],[السعر البيع]]*الجدول1[[#This Row],[الصادر ]] -> 0 | O104: =الجدول1[[#This Row],[السعر $]]*الجدول1[[#This Row],[راجع ]] -> 0 | P104: =الجدول1[[#This Row],[جرد الوارد $]]-الجدول1[[#This Row],[مبلغ الراجع $]] -> 68 | Q104: =الجدول1[[#This Row],[السعر البيع]]*الجدول1[[#This Row],[الوارد ]] -> 140
C105: مايكرو 20 لتر جنل صيني | D105: 44 | E105: 83600 | F105: 80 | G105: 5 | K105: =الجدول1[[#This Row],[الوارد ]]-الجدول1[[#This Row],[الصادر ]]-الجدول1[[#This Row],[حجوزات]]-الجدول1[[#This Row],[راجع ]] -> 5 | L105: =الجدول1[[#This Row],[السعر عراقي ]]*الجدول1[[#This Row],[الباقي ]] -> 418000 | M105: =الجدول1[[#This Row],[السعر $]]*الجدول1[[#This Row],[الوارد ]] -> 220 | N105: =الجدول1[[#This Row],[السعر البيع]]*الجدول1[[#This Row],[الصادر ]] -> 0 | O105: =الجدول1[[#This Row],[السعر $]]*الجدول1[[#This Row],[راجع ]] -> 0 | P105: =الجدول1[[#This Row],[جرد الوارد $]]-الجدول1[[#This Row],[مبلغ الراجع $]] -> 220 | Q105: =الجدول1[[#This Row],[السعر البيع]]*الجدول1[[#This Row],[الوارد ]] -> 400
C106: مايكرو 25 لتر لمس شاشه | D106: 55 | E106: 104500 | F106: 120 | G106: 3 | K106: =الجدول1[[#This Row],[الوارد ]]-الجدول1[[#This Row],[الصادر ]]-الجدول1[[#This Row],[حجوزات]]-الجدول1[[#This Row],[راجع ]] -> 3 | L106: =الجدول1[[#This Row],[السعر عراقي ]]*الجدول1[[#This Row],[الباقي ]] -> 313500 | M106: =الجدول1[[#This Row],[السعر $]]*الجدول1[[#This Row],[الوارد ]] -> 165 | N106: =الجدول1[[#This Row],[السعر البيع]]*الجدول1[[#This Row],[الصادر ]] -> 0 | O106: =الجدول1[[#This Row],[السعر $]]*الجدول1[[#This Row],[راجع ]] -> 0 | P106: =الجدول1[[#This Row],[جرد الوارد $]]-الجدول1[[#This Row],[مبلغ الراجع $]] -> 165 | Q106: =الجدول1[[#This Row],[السعر البيع]]*الجدول1[[#This Row],[الوارد ]] -> 360
E107: 0 | K107: =الجدول1[[#This Row],[الوارد ]]-الجدول1[[#This Row],[الصادر ]]-الجدول1[[#This Row],[حجوزات]]-الجدول1[[#This Row],[راجع ]] -> 0 | L107: =الجدول1[[#This Row],[السعر عراقي ]]*الجدول1[[#This Row],[الباقي ]] -> 0 | M107: =الجدول1[[#This Row],[السعر $]]*الجدول1[[#This Row],[الوارد ]] -> 0 | N107: =الجدول1[[#This Row],[الصادر ]]*الجدول1[[#This Row],[السعر عراقي ]] -> 0 | O107: =الجدول1[[#This Row],[السعر $]]*الجدول1[[#This Row],[راجع ]] -> 0 | Q107: =الجدول1[[#This Row],[السعر البيع]]*الجدول1[[#This Row],[الوارد ]] -> 0
E108: 0 | K108: =الجدول1[[#This Row],[الوارد ]]-الجدول1[[#This Row],[الصادر ]]-الجدول1[[#This Row],[حجوزات]]-الجدول1[[#This Row],[راجع ]] -> 0 | L108: =الجدول1[[#This Row],[السعر عراقي ]]*الجدول1[[#This Row],[الباقي ]] -> 0 | M108: =الجدول1[[#This Row],[السعر $]]*الجدول1[[#This Row],[الوارد ]] -> 0 | N108: =الجدول1[[#This Row],[الصادر ]]*الجدول1[[#This Row],[السعر عراقي ]] -> 0 | O108: =الجدول1[[#This Row],[السعر $]]*الجدول1[[#This Row],[راجع ]] -> 0 | Q108: =الجدول1[[#This Row],[السعر البيع]]*الجدول1[[#This Row],[الوارد ]] -> 0
E109: 0 | K109: =الجدول1[[#This Row],[الوارد ]]-الجدول1[[#This Row],[الصادر ]]-الجدول1[[#This Row],[حجوزات]]-الجدول1[[#This Row],[راجع ]] -> 0 | L109: =الجدول1[[#This Row],[السعر عراقي ]]*الجدول1[[#This Row],[الباقي ]] -> 0 | M109: =الجدول1[[#This Row],[السعر $]]*الجدول1[[#This Row],[الوارد ]] -> 0 | N109: =الجدول1[[#This Row],[الصادر ]]*الجدول1[[#This Row],[السعر عراقي ]] -> 0 | O109: =الجدول1[[#This Row],[السعر $]]*الجدول1[[#This Row],[راجع ]] -> 0 | Q109: =الجدول1[[#This Row],[السعر البيع]]*الجدول1[[#This Row],[الوارد ]] -> 0
E110: 0 | K110: =الجدول1[[#This Row],[الوارد ]]-الجدول1[[#This Row],[الصادر ]]-الجدول1[[#This Row],[حجوزات]]-الجدول1[[#This Row],[راجع ]] -> 0 | L110: =الجدول1[[#This Row],[السعر عراقي ]]*الجدول1[[#This Row],[الباقي ]] -> 0 | M110: =الجدول1[[#This Row],[السعر $]]*الجدول1[[#This Row],[الوارد ]] -> 0 | N110: =الجدول1[[#This Row],[الصادر ]]*الجدول1[[#This Row],[السعر عراقي ]] -> 0 | O110: =الجدول1[[#This Row],[السعر $]]*الجدول1[[#This Row],[راجع ]] -> 0 | Q110: =الجدول1[[#This Row],[السعر البيع]]*الجدول1[[#This Row],[الوارد ]] -> 0
C111: شافطة دهون بشرة | D111: 4 | E111: 7600 | F111: 10 | G111: 5 | K111: =الجدول1[[#This Row],[الوارد ]]-الجدول1[[#This Row],[الصادر ]]-الجدول1[[#This Row],[حجوزات]]-الجدول1[[#This Row],[راجع ]] -> 5 | L111: =الجدول1[[#This Row],[السعر عراقي ]]*الجدول1[[#This Row],[الباقي ]] -> 38000 | M111: =الجدول1[[#This Row],[السعر $]]*الجدول1[[#This Row],[الوارد ]] -> 20 | N111: =الجدول1[[#This Row],[الصادر ]]*الجدول1[[#This Row],[السعر عراقي ]] -> 0 | O111: =الجدول1[[#This Row],[السعر $]]*الجدول1[[#This Row],[راجع ]] -> 0 | Q111: =الجدول1[[#This Row],[السعر البيع]]*الجدول1[[#This Row],[الوارد ]] -> 50
C112: صابون | D112: 1.5 | E112: 2850 | F112: 3 | G112: 74 | H112: 6 | K112: =الجدول1[[#This Row],[الوارد ]]-الجدول1[[#This Row],[الصادر ]]-الجدول1[[#This Row],[حجوزات]]-الجدول1[[#This Row],[راجع ]] -> 68 | L112: =الجدول1[[#This Row],[السعر عراقي ]]*الجدول1[[#This Row],[الباقي ]] -> 193800 | M112: =الجدول1[[#This Row],[السعر $]]*الجدول1[[#This Row],[الوارد ]] -> 111 | N112: =الجدول1[[#This Row],[الصادر ]]*الجدول1[[#This Row],[السعر عراقي ]] -> 17100 | O112: =الجدول1[[#This Row],[السعر $]]*الجدول1[[#This Row],[راجع ]] -> 0 | Q112: =الجدول1[[#This Row],[السعر البيع]]*الجدول1[[#This Row],[الوارد ]] -> 222
C113: كريم تجاعيد الوجه | D113: 2 | E113: 3800 | F113: 4.5 | G113: 17 | K113: =الجدول1[[#This Row],[الوارد ]]-الجدول1[[#This Row],[الصادر ]]-الجدول1[[#This Row],[حجوزات]]-الجدول1[[#This Row],[راجع ]] -> 17 | L113: =الجدول1[[#This Row],[السعر عراقي ]]*الجدول1[[#This Row],[الباقي ]] -> 64600 | M113: =الجدول1[[#This Row],[السعر $]]*الجدول1[[#This Row],[الوارد ]] -> 34 | N113: =الجدول1[[#This Row],[الصادر ]]*الجدول1[[#This Row],[السعر عراقي ]] -> 0 | O113: =الجدول1[[#This Row],[السعر $]]*الجدول1[[#This Row],[راجع ]] -> 0 | Q113: =الجدول1[[#This Row],[السعر البيع]]*الجدول1[[#This Row],[الوارد ]] -> 76.5
C114: كريم حليب الحمار للجسم كامل | D114: 1.5 | E114: 2850 | F114: 3.5 | G114: 7 | H114: 1 | K114: =الجدول1[[#This Row],[الوارد ]]-الجدول1[[#This Row],[الصادر ]]-الجدول1[[#This Row],[حجوزات]]-الجدول1[[#This Row],[راجع ]] -> 6 | L114: =الجدول1[[#This Row],[السعر عراقي ]]*الجدول1[[#This Row],[الباقي ]] -> 17100 | M114: =الجدول1[[#This Row],[السعر $]]*الجدول1[[#This Row],[الوارد ]] -> 10.5 | N114: =الجدول1[[#This Row],[الصادر ]]*الجدول1[[#This Row],[السعر عراقي ]] -> 2850 | O114: =الجدول1[[#This Row],[السعر $]]*الجدول1[[#This Row],[راجع ]] -> 0 | Q114: =الجدول1[[#This Row],[السعر البيع]]*الجدول1[[#This Row],[الوارد ]] -> 24.5
E115: 0 | K115: =الجدول1[[#This Row],[الوارد ]]-الجدول1[[#This Row],[الصادر ]]-الجدول1[[#This Row],[حجوزات]]-الجدول1[[#This Row],[راجع ]] -> 0 | L115: =الجدول1[[#This Row],[السعر عراقي ]]*الجدول1[[#This Row],[الباقي ]] -> 0 | M115: =الجدول1[[#This Row],[السعر $]]*الجدول1[[#This Row],[الوارد ]] -> 0 | N115: =الجدول1[[#This Row],[الصادر ]]*الجدول1[[#This Row],[السعر عراقي ]] -> 0 | O115: =الجدول1[[#This Row],[السعر $]]*الجدول1[[#This Row],[راجع ]] -> 0 | Q115: =الجدول1[[#This Row],[السعر البيع]]*الجدول1[[#This Row],[الوارد ]] -> 0
E116: 0 | K116: =الجدول1[[#This Row],[الوارد ]]-الجدول1[[#This Row],[الصادر ]]-الجدول1[[#This Row],[حجوزات]]-الجدول1[[#This Row],[راجع ]] -> 0 | L116: =الجدول1[[#This Row],[السعر عراقي ]]*الجدول1[[#This Row],[الباقي ]] -> 0 | M116: =الجدول1[[#This Row],[السعر $]]*الجدول1[[#This Row],[الوارد ]] -> 0 | N116: =الجدول1[[#This Row],[الصادر ]]*الجدول1[[#This Row],[السعر عراقي ]] -> 0 | O116: =الجدول1[[#This Row],[السعر $]]*الجدول1[[#This Row],[راجع ]] -> 0 | Q116: =الجدول1[[#This Row],[السعر البيع]]*الجدول1[[#This Row],[الوارد ]] -> 0
E117: 0 | K117: =الجدول1[[#This Row],[الوارد ]]-الجدول1[[#This Row],[الصادر ]]-الجدول1[[#This Row],[حجوزات]]-الجدول1[[#This Row],[راجع ]] -> 0 | L117: =الجدول1[[#This Row],[السعر عراقي ]]*الجدول1[[#This Row],[الباقي ]] -> 0 | M117: =الجدول1[[#This Row],[السعر $]]*الجدول1[[#This Row],[الوارد ]] -> 0 | N117: =الجدول1[[#This Row],[الصادر ]]*الجدول1[[#This Row],[السعر عراقي ]] -> 0 | O117: =الجدول1[[#This Row],[السعر $]]*الجدول1[[#This Row],[راجع ]] -> 0 | Q117: =الجدول1[[#This Row],[السعر البيع]]*الجدول1[[#This Row],[الوارد ]] -> 0
E118: 0 | K118: =الجدول1[[#This Row],[الوارد ]]-الجدول1[[#This Row],[الصادر ]]-الجدول1[[#This Row],[حجوزات]]-الجدول1[[#This Row],[راجع ]] -> 0 | L118: =الجدول1[[#This Row],[السعر عراقي ]]*الجدول1[[#This Row],[الباقي ]] -> 0 | M118: =الجدول1[[#This Row],[السعر $]]*الجدول1[[#This Row],[الوارد ]] -> 0 | N118: =الجدول1[[#This Row],[الصادر ]]*الجدول1[[#This Row],[السعر عراقي ]] -> 0 | O118: =الجدول1[[#This Row],[السعر $]]*الجدول1[[#This Row],[راجع ]] -> 0 | Q118: =الجدول1[[#This Row],[السعر البيع]]*الجدول1[[#This Row],[الوارد ]] -> 0
E119: 0 | K119: =الجدول1[[#This Row],[الوارد ]]-الجدول1[[#This Row],[الصادر ]]-الجدول1[[#This Row],[حجوزات]]-الجدول1[[#This Row],[راجع ]] -> 0 | L119: =الجدول1[[#This Row],[السعر عراقي ]]*الجدول1[[#This Row],[الباقي ]] -> 0 | M119: =الجدول1[[#This Row],[السعر $]]*الجدول1[[#This Row],[الوارد ]] -> 0 | N119: =الجدول1[[#This Row],[الصادر ]]*الجدول1[[#This Row],[السعر عراقي ]] -> 0 | O119: =الجدول1[[#This Row],[السعر $]]*الجدول1[[#This Row],[راجع ]] -> 0 | Q119: =الجدول1[[#This Row],[السعر البيع]]*الجدول1[[#This Row],[الوارد ]] -> 0
E120: 0 | K120: =الجدول1[[#This Row],[الوارد ]]-الجدول1[[#This Row],[الصادر ]]-الجدول1[[#This Row],[حجوزات]]-الجدول1[[#This Row],[راجع ]] -> 0 | L120: =الجدول1[[#This Row],[السعر عراقي ]]*الجدول1[[#This Row],[الباقي ]] -> 0 | M120: =الجدول1[[#This Row],[السعر $]]*الجدول1[[#This Row],[الوارد ]] -> 0 | N120: =الجدول1[[#This Row],[الصادر ]]*الجدول1[[#This Row],[السعر عراقي ]] -> 0 | O120: =الجدول1[[#This Row],[السعر $]]*الجدول1[[#This Row],[راجع ]] -> 0 | Q120: =الجدول1[[#This Row],[السعر البيع]]*الجدول1[[#This Row],[الوارد ]] -> 0
E121: 0 | K121: =الجدول1[[#This Row],[الوارد ]]-الجدول1[[#This Row],[الصادر ]]-الجدول1[[#This Row],[حجوزات]]-الجدول1[[#This Row],[راجع ]] -> 0 | L121: =الجدول1[[#This Row],[السعر عراقي ]]*الجدول1[[#This Row],[الباقي ]] -> 0 | M121: =الجدول1[[#This Row],[السعر $]]*الجدول1[[#This Row],[الوارد ]] -> 0 | N121: =الجدول1[[#This Row],[الصادر ]]*الجدول1[[#This Row],[السعر عراقي ]] -> 0 | O121: =الجدول1[[#This Row],[السعر $]]*الجدول1[[#This Row],[راجع ]] -> 0 | Q121: =الجدول1[[#This Row],[السعر البيع]]*الجدول1[[#This Row],[الوارد ]] -> 0
E122: 0 | K122: =الجدول1[[#This Row],[الوارد ]]-الجدول1[[#This Row],[الصادر ]]-الجدول1[[#This Row],[حجوزات]]-الجدول1[[#This Row],[راجع ]] -> 0 | L122: =الجدول1[[#This Row],[السعر عراقي ]]*الجدول1[[#This Row],[الباقي ]] -> 0 | M122: =الجدول1[[#This Row],[السعر $]]*الجدول1[[#This Row],[الوارد ]] -> 0 | N122: =الجدول1[[#This Row],[الصادر ]]*الجدول1[[#This Row],[السعر عراقي ]] -> 0 | O122: =الجدول1[[#This Row],[السعر $]]*الجدول1[[#This Row],[راجع ]] -> 0 | Q122: =الجدول1[[#This Row],[السعر البيع]]*الجدول1[[#This Row],[الوارد ]] -> 0
E123: 0 | K123: =الجدول1[[#This Row],[الوارد ]]-الجدول1[[#This Row],[الصادر ]]-الجدول1[[#This Row],[حجوزات]]-الجدول1[[#This Row],[راجع ]] -> 0 | L123: =الجدول1[[#This Row],[السعر عراقي ]]*الجدول1[[#This Row],[الباقي ]] -> 0 | M123: =الجدول1[[#This Row],[السعر $]]*الجدول1[[#This Row],[الوارد ]] -> 0 | N123: =الجدول1[[#This Row],[الصادر ]]*الجدول1[[#This Row],[السعر عراقي ]] -> 0 | O123: =الجدول1[[#This Row],[السعر $]]*الجدول1[[#This Row],[راجع ]] -> 0 | Q123: =الجدول1[[#This Row],[السعر البيع]]*الجدول1[[#This Row],[الوارد ]] -> 0
E124: 0 | K124: =الجدول1[[#This Row],[الوارد ]]-الجدول1[[#This Row],[الصادر ]]-الجدول1[[#This Row],[حجوزات]]-الجدول1[[#This Row],[راجع ]] -> 0 | L124: =الجدول1[[#This Row],[السعر عراقي ]]*الجدول1[[#This Row],[الباقي ]] -> 0 | M124: =الجدول1[[#This Row],[السعر $]]*الجدول1[[#This Row],[الوارد ]] -> 0 | N124: =الجدول1[[#This Row],[الصادر ]]*الجدول1[[#This Row],[السعر عراقي ]] -> 0 | O124: =الجدول1[[#This Row],[السعر $]]*الجدول1[[#This Row],[راجع ]] -> 0 | Q124: =الجدول1[[#This Row],[السعر البيع]]*الجدول1[[#This Row],[الوارد ]] -> 0
E125: 0 | K125: =الجدول1[[#This Row],[الوارد ]]-الجدول1[[#This Row],[الصادر ]]-الجدول1[[#This Row],[حجوزات]]-الجدول1[[#This Row],[راجع ]] -> 0 | L125: =الجدول1[[#This Row],[السعر عراقي ]]*الجدول1[[#This Row],[الباقي ]] -> 0 | M125: =الجدول1[[#This Row],[السعر $]]*الجدول1[[#This Row],[الوارد ]] -> 0 | N125: =الجدول1[[#This Row],[الصادر ]]*الجدول1[[#This Row],[السعر عراقي ]] -> 0 | O125: =الجدول1[[#This Row],[السعر $]]*الجدول1[[#This Row],[راجع ]] -> 0 | Q125: =الجدول1[[#This Row],[السعر البيع]]*الجدول1[[#This Row],[الوارد ]] -> 0
E126: 0 | K126: =الجدول1[[#This Row],[الوارد ]]-الجدول1[[#This Row],[الصادر ]]-الجدول1[[#This Row],[حجوزات]]-الجدول1[[#This Row],[راجع ]] -> 0 | L126: =الجدول1[[#This Row],[السعر عراقي ]]*الجدول1[[#This Row],[الباقي ]] -> 0 | M126: =الجدول1[[#This Row],[السعر $]]*الجدول1[[#This Row],[الوارد ]] -> 0 | N126: =الجدول1[[#This Row],[الصادر ]]*الجدول1[[#This Row],[السعر عراقي ]] -> 0 | O126: =الجدول1[[#This Row],[السعر $]]*الجدول1[[#This Row],[راجع ]] -> 0 | Q126: =الجدول1[[#This Row],[السعر البيع]]*الجدول1[[#This Row],[الوارد ]] -> 0
E127: 0 | K127: =الجدول1[[#This Row],[الوارد ]]-الجدول1[[#This Row],[الصادر ]]-الجدول1[[#This Row],[حجوزات]]-الجدول1[[#This Row],[راجع ]] -> 0 | L127: =الجدول1[[#This Row],[السعر عراقي ]]*الجدول1[[#This Row],[الباقي ]] -> 0 | M127: =الجدول1[[#This Row],[السعر $]]*الجدول1[[#This Row],[الوارد ]] -> 0 | N127: =الجدول1[[#This Row],[السعر البيع]]*الجدول1[[#This Row],[الصادر ]] -> 0 | O127: =الجدول1[[#This Row],[السعر $]]*الجدول1[[#This Row],[راجع ]] -> 0 | P127: =الجدول1[[#This Row],[جرد الوارد $]]-الجدول1[[#This Row],[مبلغ الراجع $]] -> 0 | Q127: =الجدول1[[#This Row],[السعر البيع]]*الجدول1[[#This Row],[الوارد ]] -> 0
E128: 0 | K128: =الجدول1[[#This Row],[الوارد ]]-الجدول1[[#This Row],[الصادر ]]-الجدول1[[#This Row],[حجوزات]]-الجدول1[[#This Row],[راجع ]] -> 0 | L128: =الجدول1[[#This Row],[السعر عراقي ]]*الجدول1[[#This Row],[الباقي ]] -> 0 | M128: =الجدول1[[#This Row],[السعر $]]*الجدول1[[#This Row],[الوارد ]] -> 0 | N128: =الجدول1[[#This Row],[السعر البيع]]*الجدول1[[#This Row],[الصادر ]] -> 0 | O128: =الجدول1[[#This Row],[السعر $]]*الجدول1[[#This Row],[راجع ]] -> 0 | P128: =الجدول1[[#This Row],[جرد الوارد $]]-الجدول1[[#This Row],[مبلغ الراجع $]] -> 0 | Q128: =الجدول1[[#This Row],[السعر البيع]]*الجدول1[[#This Row],[الوارد ]] -> 0
E129: 0 | K129: =الجدول1[[#This Row],[الوارد ]]-الجدول1[[#This Row],[الصادر ]]-الجدول1[[#This Row],[حجوزات]]-الجدول1[[#This Row],[راجع ]] -> 0 | L129: =L5+L7+L8+L9+L12+L13+L14+L15+L20+L24+L27+L28+L30+L34+L35+L38+L39+L40+L41+L42+L43+L44+L48+L55+L57+L60+L62+L64+L65+L72+L75+L76+L77+L78+L19+L82+L86+L89+L90+L91+L92+L93+L100+L102+L104+L105+L106+L127+L128 -> 5438750 | M129: =M5+M7+M8+M9+M12+M13+M14+M15+M20+M24+M27+M28+M30+M34+M35+M38+M39+M40+M41+M42+M43+M44+M48+M55+M57+M60+M62+M64+M65+M72+M75+M76+M77+M78+M19+M82+M86+M89+M90+M91+M92+M93+M100+M102+M104+M105+M106+M127+M128 -> 3678.6 | N129: =N5+N7+N8+N9+N12+N13+N14+N15+N17+N18+N19+N20+N24+N27+N28+N30+N34+N35+N38+N39+N40+N41+N42+N43+N44+N48+N55+N57+N60+N62+N64+N65+N67+N68+N69+N70+N71+N72+N75+N76+N77+N78+N82+N86+N89+N90+N91+N92+N93+N100+N102+N104+N105+N106+N127+N128 -> 985 | O129: =الجدول1[[#This Row],[السعر $]]*الجدول1[[#This Row],[راجع ]] -> 0 | P129: =P5+P7+P8+P9+P12+P13+P14+P15+P17+P18+P19+P20+P24+P27+P28+P30+P34+P35+P38+P39+P40+P41+P42+P43+P44+P48+P55+P57+P60+P62+P64+P65+P67+P68+P69+P70+P71+P72+P75+P76+P77+P78+P82+P86+P89+P90+P91+P92+P93+P100+P102+P104+P105+P106+P127+P128 -> 4030 | Q129: =Q5+Q6+Q7+Q8+Q9+Q12+Q13+Q14+Q15+Q17+Q18+Q19+Q20+Q24+Q27+Q28+Q30+Q34+Q35+Q38+Q39+Q40+Q41+Q42+Q43+Q44+Q45+Q46+Q47+Q48+Q49+Q50+Q51+Q52+Q53+Q54+Q55+Q57+Q58+Q59+Q60+Q62+Q63+Q64+Q65+Q67+Q68+Q69+Q70+Q71+Q72+Q73+Q74+Q75+Q76+Q77+Q78+Q82+Q83+Q84+Q85+Q86+Q87++Q88+Q89+Q90+Q91+Q92+Q93+Q95+Q96+Q97+Q98+Q99+Q100+Q101+Q102+Q103+Q104+Q105+Q106+Q107+Q108+Q109+Q110+Q111+Q112+Q113+Q114+Q115++Q117+Q118+Q119+Q120+Q121+Q122+Q123+Q124+Q125+Q126+Q127+Q128 -> 21139
A155: 4 | C155: مثرامة لحم صناعي | D155: 60 | E155: 114000 | F155: 115 | G155: 4 | H155: =A155*D155 -> 240 | K155: 4 | L155: 456000 | M155: 240 | N155: 0 | O155: 0 | Q155: 460
A156: 10 | C156: مكينه حلاقة متعدده | D156: 8 | E156: 15200 | F156: 17 | G156: 8 | H156: =A156*D156 -> 80 | K156: 8 | L156: 121600 | M156: 64 | N156: 0 | O156: 0 | P156: 64 | Q156: 136
A157: 10 | C157: دريل باركسايد شحن | D157: 15 | E157: 28500 | F157: 30 | G157: 10 | H157: 150 | K157: 10 | L157: 285000 | M157: 150 | N157: 0 | O157: 0 | Q157: 300
A158: 10 | C158: دريل اخضر | D158: 24 | E158: 45600 | F158: 45 | G158: 13 | H158: 240 | K158: 13 | L158: 592800 | M158: 312 | N158: 0 | O158: 0 | P158: 312 | Q158: 585
A159: 100 | C159: لايت مدالية | D159: 2 | E159: 3800 | F159: 5 | G159: 129 | H159: 200 | K159: 129 | L159: 490200 | M159: 258 | N159: 0 | O159: 0 | P159: 258 | Q159: 645
A160: 10 | C160: ام بي 3 كلاسك | D160: 8 | E160: 15200 | F160: 14 | G160: 10 | H160: 80 | K160: 10 | L160: 152000 | M160: 80 | N160: 0 | O160: 0 | P160: 80 | Q160: 140
A161: 12 | C161: هراسة سلفر ولف | D161: 12.5 | E161: 23750 | F161: 25 | G161: 12 | H161: 150 | K161: 12 | L161: 285000 | M161: 150 | N161: 0 | O161: 0 | Q161: 300
A162: 3 | C162: بلور سحب كبير ريوبي | D162: 20 | E162: 38000 | F162: 40 | G162: 3 | H162: 60 | K162: 3 | L162: 114000 | M162: 60 | N162: 0 | O162: 0 | Q162: 120
H163: =H155+H156+H157+H158+H159+H160+H161+H162 -> 1200

Sheet صادر الوصولات
B2: الوصولات
B3: الجمعة 24 | C3: السبت 25 | D3: الاحد 26 | E3: الاثنين 27 | F3: الثلاثاء 28 | G3: الاربعاء 1 | H3: الخميس 2
A4: 1 | B4: 40 | D4: 160 | E4: 120
A5: 2 | B5: 27 | D5: 15
A6: 3 | B6: 40 | E6: 55
A7: 4 | B7: 65 | E7: 0
A8: 5 | B8: 25 | E8: 105
A9: 6 | B9: 59
A10: 7 | B10: 38
A11: 8 | B11: 40
A12: 9 | B12: 28
A13: 10 | B13: 24
A14: 11 | B14: 40
A15: 12 | B15: 145
A16: 13 | B16: 0
A17: 14
A18: 15
A19: 16
A20: 17
A21: 18
A22: 19
A23: 20
A24: 21
A25: 22
A26: المجموع | B26: =B4+B5+B6+B7+B8+B9+B10+B11+B12+B13+B14+B15+B16+B17+B18+B19+B20+B21+B22+B23+B24+B25 -> 571 | C26: 0 | D26: 175 | E26: =E4+E5+E6+E7+E8+E9+E10+E11+E12+E13+E14+E15+E16+E17+E18+E19+E20+E21+E22+E23+E24+E25 -> 280 | F26: 0 | G26: 0 | H26: 0 | I26: =H26+G26+F26+E26+D26+C26+B26 -> 1026

Sheet الديون للمحل
B2: ديون المحل
B4: الاسم | C4: المادة | D4: المادة 2 | E4: المادة 3 | F4: المادة 4 | G4: المادة 5 | H4: الماده 6 | I4: المادة 7 | J4: تاريخ السحب | K4: المبلغ المطلوب | L4: المبلغ المدفوع | M4: المبلغ المتبقي | N4: تاريخ الدفع
B5: محمد جابر الحيدري | M5: =K5-L5 -> 0
B6: كاظم شركة | M6: 0
B7: عون | C7: رصيد | J7: 2023-01-20 | K7: 35 | M7: 35
B8: ليث نت | C8: رصيد | J8: 2023-02-24 | K8: 35 | M8: 35
B9: مهدي ابو محمد | J9: 2023-01-01 | K9: 500 | M9: 500
B10: محمد العنتاكي | M10: 0
B11: ام سيف | C11: مكنسة | J11: 2023-02-24 | K11: 105 | M11: 105
B12: ابو حسن لعذاري | C12: رصيد | D12: مكينه تدريج | J12: 2023-02-27 | K12: 65 | M12: 65
B13: حسين لعذاري | C13: يدة بلي | J13: 2023-01-20 | K13: 50 | M13: =K13-L13 -> 50
B14: سيد حسين الميالي | C14: رصيد | J14: 2023-02-03 | K14: 45 | M14: 45
B15: علي العارضي | C15: رصيد | J15: 2023-02-25 | K15: 35 | M15: 35
B16: حسام فاضل | C16: دين | K16: 387 | M16: 387
B17: انور جمال | M17: 0
B18: سيف حميد | M18: 0
B19: فوزي عباس | C19: رصيد | J19: 2023-02-25 | K19: 35 | M19: 35
B20: مرزة | M20: 0
B21: ام مؤمل | C21: باقي | J21: 2023-02-20 | K21: 8 | M21: 8
B22: محمد حمزة | M22: 0
B23: محمد حتيته | M23: 0
B24: ابو شاكر | C24: رصيد | J24: 2023-02-27 | K24: 35 | M24: 35
C25: رصيد | M25: =K25-L25 -> 0
B26: سيد حسين مولد | C26: دريل اخضر | D26: خلاط سلفر | J26: 2023-02-27 | K26: 65 | M26: 65
M27: =M5+M6+M7+M8+M9+M10+M11+M12+M14+M15+M16+M17+M18+M19+M20+M21+M22+M23+M24+M26 -> 1350

Sheet معلومات المعتمدين
B3: ت | C3: اسم الزبون | D3: رقم الزبون | E3: مكان الزبون | F3: ملاحظات
C4: ام حسين | D4: 7847118464 | E4: نجف مجمع الكرار بلوك 18دار 11
C5: ابو امور الشمري | D5: 7828919990 | E5: نجف الاشرف كوفه
C6: ابو ايمن | D6: 7500119868 | E6: نجف شارع المطار
C7: ابو حسين الخفاجي نجف | D7: 7802175176 | E7: نجف حي المكرمة
C8: ابو حيدر المصلوخي | D8: 7732442483 | E8: بغداد م مدينه الصدر / قطاع٣٨
C9: ابو زهراء | D9: 7725229026 | E9: نجف العسكري
C10: ابو علاء السعيدي | D10: 7806366330 | E10: نجف الجمعيه
C11: ابو مصطفى الشكري نجف | D11: 7821267918 | E11: نجف
C12: ابو مهدي الموسوي | D12: 7806655614 | E12: النجف / البراكية / شارع المعمل
C13: احسان العراقي | D13: 7828995575 | E13: دوانيه الحمزه شرقي شارع سيد يونس
C14: احمد ال نصار | D14: 780 017 8292 | E14: الديوانيه قضاء الشنافيه
C15: احمد البياتي | D15: 783 110 1711 | E15: نجف
C16: احمد الربيعي | D16: 7709022251 | E16: بصره / الجمعيه
C17: احمد المالكي | D17: 7710888134 | E17: بصره
C18: احمد جاسم خلف | D18: 7706398529 | E18: كربلاء حي المعلمين
C19: احمد جبار | D19: 7716389085 | E19: بغداد مدينه الصدر
C20: احمد نجاح | D20: 7831818130 | E20: نجف
C21: اسامه الكبيسي | D21: 7827774358 | E21: الانبار هيت
C22: الماسة كولد | D22: 7822645960 | E22: كاظميه دور الضباط
C23: ام حسين | D23: 7847118464 | E23: نجف مجمع الكرار بلوك 18دار11
C24: ام روز نجف مكرمه | D24: 7823001757 | E24: نجف المكرمة
C25: ام صاحب | D25: 7815815719 | E25: ديوانية / الامام الصادق
C26: ام قيس | D26: 7805496786 | E26: نجف / المهندسين
C27: اياد الغزالي | D27: 7819950330 | E27: النجف الاشرف حي النصر
C28: أنور ضياء الموسوي | D28: 7830034455 | E28: كوفه كفل
C29: بأسم عباس | D29: 7813050370 | E29: نجف حي المكرمه
C30: بلال المولى | D30: 7709903376 | E30: موصل 17 تموز
C31: بو ايمن الزركاني | D31: 7500119868 | E31: النجف /شارع المطار القديم
C32: جعفر الموسوي | D32: 7810000605 | E32: النجف جعيه
C33: جواد كاظم هادي | D33: 7831226656 | E33: ناصريه مطعم حياوي
C34: حسام داوود | D34: 7822244853 | E34: بغداد الوشاش
C35: حسين الفتلاوي | D35: 7801778738 | E35: نجف
C36: حمد من اربيل | D36: 7503518885 | E36: هولير نوي
C37: حمزه ابو عمشه | D37: 7830973082 | E37: نجف مشخاب
C38: حيدر التميمي | D38: 7725906357 | E38: بغداد البلديات
C39: خادمه المنتظر | D39: 7728556786 | E39: البصرة / المعقل
C40: دكتور ليث الاسدي | D40: 7810001434 | E40: النجف / حي ميسان
C41: دلشاد جواد | D41: 7702247531 | E41: كلار/سليمانيه(برده سور)
C42: رجل شرقي | D42: 7823541886 | E42: ناصريه سوق الشيوخ
C43: روان عمري | D43: 7827333327 | E43: نجف العسكري
C44: زيد الركابي | D44: 7803536677 | E44: نجف 17 تموز
C45: سليم العراقي | D45: 7813939534 | E45: ميسان /مجر الكبير /ناحيه العدل
C46: سيد صلاح ابو رغيف | D46: 7705501845 | E46: ميسان / عواشه
C47: سيد علي | D47: 7822235425 | E47: سماوه
C48: سيد محمد جابر الحيدري | D48: 7800018866 | E48: نجف
C49: شاكر حوسه | D49: 7810679581 | E49: نجف
C50: صباح نوري | D50: 7831841307 | E50: نجف
C51: صفاء التميمي | D51: 7700631334 | E51: بغداد / الشعلة
C52: ضياء الخزعلي | D52: 7814510941 | E52: شاميه
C53: عادل المسلماني | D53: 7735394408 | E53: كربلاء حي العامل المنطقه الرابعه
C54: عامر محمد علي | D54: 7801137908 | E54: حله
C55: عباس البهادلي | D55: 7719701851 | E55: بغداد مدينه الصدر قطاع40
C56: عباس السنجري | D56: 7701227764 | E56: كركوك
C57: عبد الحميد الدجيلي | D57: 7809937955 | E57: صلاح الدين الدجيل
C58: عبد الله الرفاعي | D58: 7833418578
C59: عبدالله الملكي | D59: 7806034467 | E59: نجف
C60: عدي ابو صوفي | D60: 7706809724 | E60: نجف حي جزيرة
C61: علاء النجفي | D61: 7830464042 | E61: النجف قضاء المشخاب
C62: علي السعيدي | D62: 7827885558 | E62: الديوانية / قضاء الشنافية
C63: علي عرب | D63: 7728217280 | E63: نجف
C64: علي كاظم ديوانيه | D64: 7809019532 | E64: الديوانية / الاسكان
C65: علي محمد | D65: 7810382851 | E65: الديوانية / حي الجمهورية
C66: عليكة التاج | D66: 7710293398 | E66: البصره كرنه
C67: عمار هاشم | D67: 7727455394 | E67: ديالى خان بي سعد
C68: غابات الامزون | D68: 7706744555 | E68: بصره / تنومه
C69: غسان الحميداوي | D69: 7811639382 | E69: نجف / حي الوفاء
C70: فاطمية | D70: 7821632960 | E70: نجف العباسية
C71: قصي الابراهيمي | D71: 7716788990 | E71: كربلاء / حي عامل
C72: ليث عنوز | D72: 7811839230 | E72: نجف
C73: مجهول مجهول | D73: 7830745568 | E73: سماوة خضر
C74: محمد البصري | D74: 7800935926 | E74: البصرة النشوه
C75: محمد امين | D75: 7700677706 | E75: بغداد مدينه الصدر
C76: محمد رضا امزون | D76: 7713314545 | E76: بغداد جميلة
C77: محمد عزيز الدركزلي | D77: 7813121421 | E77: النجف / حي الوفاء
C78: محمد علي | D78: 7517682964 | E78: موصل
C79: محمد علي فرج | D79: 7714118119 | E79: كربلاء سيف سعد
C80: محمد علي فرح | D80: 7714118119 | E80: كربلاء
C81: محمد مجيد العبادي | D81: 7832915043 | E81: ناصريه سومر
C82: محمد مصلاوي | D82: 7705993861 | E82: نجف عمود 150
C83: محمود حميد | D83: 7711110380 | E83: سده الهنديه
C84: مشتاق السوداني | D84: 7728169340
C85: مهند الطائي | D85: 7801539625 | E85: حلة حلي الامام
C86: مهند المياحي | D86: 7709647251 | E86: بغداد الشعب
C87: ميثم لحجيمي | D87: 7807332450 | E87: ديوانية / الامام الكاظم
C88: ندى علي | D88: 7711637819 | E88: بغداد مدينه الصدر
C89: ندىة العبيدي | D89: 7703706944 | E89: بغداد الحريه
C90: هاني حميد نجف | D90: 7831366609 | E90: كوفة عباسيه
C91: هيثم الشمري بغداد المنصور | D91: 7723399924 | E91: بغداد / المنصور
C92: وردة النرجس النرجس | D92: 7711167847 | E92: كربلاء حي العامل المنطقة السادسة
C93: وسام البدري | D93: 7713024720 | E93: بغداد الشعب
C94: وسام البهاش | D94: 7828274746 | E94: نجف
C95: وسام صلاح | D95: 7704646066 | E95: بغداد / الشعب
C96: ياسر ثامر | D96: 7703222344 | E96: بغداد / شارع فلسطين
C97: ابو هاني | D97: 7827543433 | E97: نجف
C98: علي كامل الطائي | D98: 7811404031 | E98: ذي قار الشطرة
C99: علي اكبر شبكي | D99: 7710437633 | E99: موصل برطله
C100: اوراق الشتاء | D100: 7829807576 | E100: بغداد حي العدل
C101: خادمه المنتظر نسر | D101: 7803386995 | E101: نجف حي الاسكان
C102: ابوحسن | D102: 7735384868 | E102: نجف حي الزهراء قرب اسواق سلام
C103: ام محمد | D103: 7818251958 | E103: ديوانيه حي الجزائر

Sheet الديون على المحل
B2: ديون على المحل
B4: اسم المخزن | C4: الدين بالعراقي | D4: الدين $
B5: مخزن احمد | C5: 12507000 | D5: =الجدول6[[#This Row],[الدين بالعراقي ]]/153 -> 81745.09804
B6: مخزن علي | C6: 1617000 | D6: =الجدول6[[#This Row],[الدين بالعراقي ]]/153 -> 10568.62745
B7: مخزن مصطفى | C7: 2245000 | D7: =الجدول6[[#This Row],[الدين بالعراقي ]]/153 -> 14673.20261
D8: =الجدول6[[#This Row],[الدين بالعراقي ]]/153 -> 0
D9: =الجدول6[[#This Row],[الدين بالعراقي ]]/153 -> 0
B10: المجموع | C10: =C5+C6+C7+C8+C9 -> 16369000 | D10: =الجدول6[[#This Row],[الدين بالعراقي ]]/153 -> 106986.9281
